Workbook

Sheet SimpleCalc
N1: ПОКУПКА | P1: СР.ГЕОМ
A2: Дата | B2: =TODAY() -> 2018-09-19 | D2: Вид ставки | E2: СР.АРИФМ | N2: ПРОДАЖА | P2: СР.АРИФМ
A4: Объем, млн | B4: 1000
A6: Стресс по ставке | B6: 0.01
A8: Период фиксации ставки
A9: с | B9: =CurDate -> 2018-09-19
A10: по | B10: =tBegin+182 -> 2019-03-20
A13: Сделка | B13: ПОКУПКА
A15: Получаем | B15: =IF(B13="ПРОДАЖА","RUONIA","ФИКС"&"="&ROUND(I43,2)) -> ФИКС=7.65 | C15: Платим | D15: =IF(B13="ПОКУПКА","RUONIA","ФИКС"&"="&ROUND(I44,2)) -> RUONIA
A17: ГО под позицию текущее, руб | B17: =Q36 -> 10199512.5
A18: с учетом запаса под стресс | B18: =Q40 -> 15027977.61
A19: Фондирование ГО | B19: 0.1
A20: Расходы на ГО,% годовых | B20: =SUMPRODUCT(X24:X35,Y24:Y35)*B19/12/(10^6*B4) -> 0.0003457406733
A21: с учетом запаса под стресс | B21: =SUMPRODUCT(Z24:Z35,Y24:Y35)*B19/12/(10^6*B4) -> 0.0005032072807
D22: MID | AP22: BID | AQ22: ASK | AR22: BID | AS22: ASK | AT22: BID | AU22: ASK
A23: Фьючерс | B23: Начало ставки | C23: Дата экспирации | D23: Котировка | E23: Implied ставка | H23: Кфц хеджа | I23: Дней ставки | J23: Контрактов | K23: Ст.шага | L23: Цена руб | M23: ГО% | Q23: ГО,руб | R23: MID | S23: BID | T23: ASK | U23: impliedBID | V23: impliedASK | AB23: Изм.котировки | AC23: Лимит из ГО | AD23: Кфц увелич ГО | AE23: Запас | AG23: Дней кон | AH23: Дата1 | AI23: Дата2 | AJ23: Imp.ставка | AK23: Дней | AL23: Ср.Арифм | AM23: За месяц | AN23: Накопл | AO23: Ср.Геом | AP23: За месяц | AR23: Накопленный | AT23: Ср.Геом | AW23: График снижения ГО в ближайшем контракте
A24: =FairPriceCalc!B13 -> RUON-9.18 | B24: =FairPriceCalc!E13 -> 2018-08-31 | C24: =FairPriceCalc!F13 -> 2018-09-28 | D24: 92.86 | E24: =pct_yield_coeff*(100-D24-pct_yield_total) -> 7.34 | F24: =MAX($B$2,tBegin,B24) -> 2018-09-19 | G24: =MIN(C24,tEnd) -> 2018-09-28 | H24: =IF(I24>0,IF(F24<=G24,(G24-F24)/(C24-F24),0),0) -> 1 | I24: =IF(G24>=F24,G24-F24,0) -> 9 | J24: =ROUND(H24*$B$4*$B$43,0) -> 1039 | K24: =10^6*(C24-B24)/365*0.01% -> 7.671232877 | L24: =D24/0.01*K24 -> 71235.06849 | M24: =AY28 -> 0.015 | Q24: =L24*M24*J24 -> 1110198.542 | R24: =VLOOKUP(A24,RUONIA_QUOTES!get2.aspx?type_RUONIA_QUOTES,4,FALSE)/100 -> 92.85 | S24: =VLOOKUP(A24,RUONIA_QUOTES!get2.aspx?type_RUONIA_QUOTES,2,FALSE)/100 -> 92.73 | T24: =VLOOKUP(A24,RUONIA_QUOTES!get2.aspx?type_RUONIA_QUOTES,3,FALSE)/100 -> 92.98 | U24: =pct_yield_coeff*(100-S24-pct_yield_total) -> 7.744444444 | V24: =pct_yield_coeff*(100-T24-pct_yield_total) -> 6.966666667 | W24: =RIGHT(A24,LEN(A24)-5) -> 9.18 | X24: =Q24 -> 1110198.542 | Y24: =IF(J24>0,1,0) -> 1 | Z24: =Q24+AE24 -> 1362114.613 | AB24: =FairPriceCalc!T13 -> -0.3208772506 | AC24: =L24*M24/2/K24*0.01 -> 0.69645 | AD24: =1.5^(INT(ABS(AB24/AC24))) -> 1 | AE24: =K24/0.01*AB24*(M24*AD24-1)*J24 -> 251916.0701 | AF24: =AO24/AL24 -> 1.000804761 | AG24: =C24-MAX(B24,CurDate) -> 9 | AH24: =MAX(B24,CurDate) -> 2018-09-19 | AI24: =C24 -> 2018-09-28 | AJ24: =E24 -> 7.34 | AK24: =C24-CurDate -> 9 | AL24: =AJ24 -> 7.34 | AM24: =(1+E24*0.01/365)^$AG24 -> 1.00181132 | AN24: =AM24 -> 1.00181132 | AO24: =(AN24-1)*100*365/$AK24 -> 7.345906947 | AP24: =(1+U24*0.01/365)^$AG24 -> 1.001911211 | AQ24: =(1+V24*0.01/365)^$AG24 -> 1.00171912 | AR24: =AP24 -> 1.001911211 | AS24: =AQ24 -> 1.00171912 | AT24: =(AR24-1)*100*365/$AK24 -> 7.751020458 | AU24: =(AS24-1)*100*365/$AK24 -> 6.971987879 | AW24: =B24 -> 2018-08-31 | AX24: =AW25 -> 2018-09-07 | AY24: 0.025 | AZ24: =IF(AND(CurDate>=AW24,CurDate<AX24),1,0) -> 0
A25: =FairPriceCalc!B14 -> RUON-10.18 | B25: =FairPriceCalc!E14 -> 2018-09-28 | C25: =FairPriceCalc!F14 -> 2018-10-31 | D25: 92.65 | E25: =100-D25 -> 7.35 | F25: 2018-09-28 | G25: 2018-10-31 | H25: 1 | I25: 33 | J25: =ROUND(H25*$B$4*$B$43,0) -> 1039 | K25: 9.04109589 | L25: =D25/0.01*K25 -> 83765.75342 | M25: 0.02 | Q25: =L25*M25*J25 -> 1740652.356 | R25: =VLOOKUP(A25,RUONIA_QUOTES!get2.aspx?type_RUONIA_QUOTES,4,FALSE)/100 -> 92.62 | S25: =VLOOKUP(A25,RUONIA_QUOTES!get2.aspx?type_RUONIA_QUOTES,2,FALSE)/100 -> 92.5 | T25: =VLOOKUP(A25,RUONIA_QUOTES!get2.aspx?type_RUONIA_QUOTES,3,FALSE)/100 -> 92.75 | U25: =100-S25 -> 7.5 | V25: =100-T25 -> 7.25 | W25: =RIGHT(A25,LEN(A25)-5) -> 10.18 | X25: =Q25+X24 -> 2850850.899 | Y25: =IF(J25>0,1,0) -> 1 | Z25: =Z24+Q25+AE25 -> 4004208.201 | AB25: =FairPriceCalc!T14 -> -0.9893023977 | AC25: 0.9265 | AD25: =1.5^(INT(ABS(AB25/AC25))) -> 1.5 | AE25: =K25/0.01*AB25*(M25*AD25-1)*J25 -> 901441.232 | AF25: =AO25/AL25 -> 1.004137978 | AG25: 33 | AH25: =B25 -> 2018-09-28 | AI25: 2018-10-31 | AJ25: 7.35 | AK25: 42 | AL25: =(AJ25*($AK25-$AK24)+AL24*$AK24)/$AK25 -> 7.347857143 | AM25: =(1+E25*0.01/365)^$AG25 -> 1.00666666 | AN25: =AM25*AN24 -> 1.008490055 | AO25: =(AN25-1)*100*365/AK25 -> 7.378262411 | AP25: 1.006803162 | AQ25: 1.006575669 | AR25: =AP25*AR24 -> 1.008727375 | AS25: =AQ25*AS24 -> 1.008306094 | AT25: =(AR25-1)*100*365/$AK25 -> 7.584504671 | AU25: =(AS25-1)*100*365/$AK25 -> 7.218390938 | AW25: =Workday2(AW24,5,65,RUHolidays!$A$1:$A$15) -> 2018-09-07 | AX25: =AW26 -> 2018-09-14 | AY25: 0.02 | AZ25: =IF(AND(CurDate>=AW25,CurDate<AX25),1,0) -> 0
A26: =FairPriceCalc!B15 -> RUON-11.18 | B26: =FairPriceCalc!E15 -> 2018-10-31 | C26: =FairPriceCalc!F15 -> 2018-11-30 | D26: 92.46 | E26: 7.54 | F26: 2018-10-31 | G26: 2018-11-30 | H26: 1 | I26: 30 | J26: 1039 | K26: 8.219178082 | L26: 75994.52055 | M26: 0.02 | Q26: 1579166.137 | R26: =VLOOKUP(A26,RUONIA_QUOTES!get2.aspx?type_RUONIA_QUOTES,4,FALSE)/100 -> 92.45 | S26: =VLOOKUP(A26,RUONIA_QUOTES!get2.aspx?type_RUONIA_QUOTES,2,FALSE)/100 -> 92.33 | T26: =VLOOKUP(A26,RUONIA_QUOTES!get2.aspx?type_RUONIA_QUOTES,3,FALSE)/100 -> 92.58 | U26: =100-S26 -> 7.67 | V26: =100-T26 -> 7.42 | W26: 11.18 | X26: 4430017.036 | Y26: 1 | Z26: 6391517.113 | AB26: =FairPriceCalc!T15 -> -0.9756014176 | AC26: 0.9246 | AD26: =1.5^(INT(ABS(AB26/AC26))) -> 1.5 | AE26: 808142.7754 | AF26: 1.007258821 | AG26: 30 | AH26: 2018-10-31 | AI26: 2018-11-30 | AJ26: 7.54 | AK26: 72 | AL26: =(AJ26*(AK26-AK25)+AL25*AK25)/AK26 -> 7.427916667 | AM26: 1.006215859 | AN26: =AM26*AN25 -> 1.014758687 | AO26: =(AN26-1)*100*365/AK26 -> 7.481834582 | AP26: 1.006323356 | AQ26: 1.006116641 | AR26: =AP26*AR25 -> 1.015105917 | AS26: =AQ26*AS25 -> 1.01447354 | AT26: 7.657860899 | AU26: 7.337280758 | AW26: =Workday2(AW25,5,65,RUHolidays!$A$1:$A$15) -> 2018-09-14 | AX26: =AW27 -> 2018-09-21 | AY26: 0.015 | AZ26: =IF(AND(CurDate>=AW26,CurDate<AX26),1,0) -> 1
A27: =FairPriceCalc!B16 -> RUON-12.18 | B27: =FairPriceCalc!E16 -> 2018-11-30 | C27: =FairPriceCalc!F16 -> 2018-12-31 | D27: 92.32 | E27: 7.68 | F27: 2018-11-30 | G27: 2018-12-31 | H27: 1 | I27: 31 | J27: 1039 | K27: 8.493150685 | L27: 78408.76712 | M27: 0.02 | Q27: 1629334.181 | R27: =VLOOKUP(A27,RUONIA_QUOTES!get2.aspx?type_RUONIA_QUOTES,4,FALSE)/100 -> 92.32 | S27: =VLOOKUP(A27,RUONIA_QUOTES!get2.aspx?type_RUONIA_QUOTES,2,FALSE)/100 -> 92.2 | T27: =VLOOKUP(A27,RUONIA_QUOTES!get2.aspx?type_RUONIA_QUOTES,3,FALSE)/100 -> 92.45 | U27: 7.8 | V27: 7.55 | W27: 12.18 | X27: 6059351.216 | Y27: 1 | Z27: 8844370.575 | AB27: =FairPriceCalc!T16 -> -0.9620943421 | AC27: 0.9232 | AD27: 1.5 | AE27: 823519.2812 | AF27: 1.010557649 | AG27: 31 | AH27: 2018-11-30 | AI27: 2018-12-31 | AJ27: 7.68 | AK27: 103 | AL27: =(AJ27*(AK27-AK26)+AL26*AK26)/AK27 -> 7.503786408 | AM27: 1.006543368 | AN27: 1.021398627 | AO27: 7.583008748 | AP27: 1.006645937 | AQ27: 1.006432264 | AR27: 1.021852247 | AS27: 1.020998902 | AT27: 7.743757442 | AU27: 7.441358531 | AW27: =Workday2(AW26,5,65,RUHolidays!$A$1:$A$15) -> 2018-09-21 | AX27: =C24 -> 2018-09-28 | AY27: 0.01 | AZ27: =IF(AND(CurDate>=AW27,CurDate<AX27),1,0) -> 0
A28: =FairPriceCalc!B17 -> RUON-1.19 | B28: =FairPriceCalc!E17 -> 2018-12-31 | C28: =FairPriceCalc!F17 -> 2019-01-31 | D28: 92.17 | E28: 7.83 | F28: 2018-12-31 | G28: 2019-01-31 | H28: 1 | I28: 31 | J28: 1039 | K28: 8.493150685 | L28: 78281.36986 | M28: 0.02 | Q28: 1626686.866 | R28: =VLOOKUP(A28,RUONIA_QUOTES!get2.aspx?type_RUONIA_QUOTES,4,FALSE)/100 -> 92.19 | S28: =VLOOKUP(A28,RUONIA_QUOTES!get2.aspx?type_RUONIA_QUOTES,2,FALSE)/100 -> 92.07 | T28: =VLOOKUP(A28,RUONIA_QUOTES!get2.aspx?type_RUONIA_QUOTES,3,FALSE)/100 -> 92.32 | U28: 7.93 | V28: 7.68 | W28: 1.19 | X28: 7686038.082 | Y28: 1 | Z28: 11282610.55 | AB28: =FairPriceCalc!T17 -> -0.9481145997 | AC28: 0.9217 | AD28: 1.5 | AE28: 811553.1081 | AF28: 1.013935743 | AG28: 31 | AH28: 2018-12-31 | AI28: 2019-01-31 | AJ28: 7.83 | AK28: 134 | AL28: 7.579253731 | AM28: 1.00667158 | AN28: 1.02821297 | AO28: 7.68487626 | AP28: 1.006757064 | AQ28: 1.006543368 | AR28: 1.028756968 | AS28: 1.027679674 | AT28: 7.833054622 | AU28: 7.539612751 | AW28: Итого ГО | AY28: =SUMPRODUCT(AY24:AY27,AZ24:AZ27) -> 0.015
A29: =FairPriceCalc!B18 -> RUON-2.19 | B29: =FairPriceCalc!E18 -> 2019-01-31 | C29: =FairPriceCalc!F18 -> 2019-02-28 | D29: 92.02 | E29: 7.98 | F29: 2019-01-31 | G29: 2019-02-28 | H29: 1 | I29: 28 | J29: 1039 | K29: 7.671232877 | L29: 70590.68493 | M29: 0.02 | Q29: 1466874.433 | R29: =VLOOKUP(A29,RUONIA_QUOTES!get2.aspx?type_RUONIA_QUOTES,4,FALSE)/100 -> 92.05 | S29: =VLOOKUP(A29,RUONIA_QUOTES!get2.aspx?type_RUONIA_QUOTES,2,FALSE)/100 -> 91.9 | T29: =VLOOKUP(A29,RUONIA_QUOTES!get2.aspx?type_RUONIA_QUOTES,3,FALSE)/100 -> 92.2 | U29: 8.1 | V29: 7.8 | W29: 2.19 | X29: 9152912.515 | Y29: 1 | Z29: 13472075.02 | AB29: =FairPriceCalc!T18 -> -0.9346295765 | AC29: 0.9202 | AD29: 1.5 | AE29: 722590.0365 | AF29: 1.017058659 | AG29: 28 | AH29: 2019-01-31 | AI29: 2019-02-28 | AJ29: 7.98 | AK29: 162 | AL29: =(AJ29*(AK29-AK28)+AL28*AK28)/AK29 -> 7.648518519 | AM29: 1.006139746 | AN29: 1.034525937 | AO29: 7.778991989 | AP29: 1.00623235 | AQ29: 1.006000856 | AR29: 1.035168541 | AS29: 1.033846632 | AT29: 7.923776255 | AU29: 7.625938639
A30: =FairPriceCalc!B19 -> RUON-3.19 | B30: =FairPriceCalc!E19 -> 2019-02-28 | C30: =FairPriceCalc!F19 -> 2019-03-29 | D30: 91.86 | E30: 8.14 | F30: 2019-02-28 | G30: 2019-03-20 | H30: 0.6896551724 | I30: 20 | J30: 717 | K30: 7.945205479 | L30: 72984.65753 | M30: 0.02 | Q30: 1046599.989 | R30: =VLOOKUP(A30,RUONIA_QUOTES!get2.aspx?type_RUONIA_QUOTES,4,FALSE)/100 -> 91.9 | S30: =VLOOKUP(A30,RUONIA_QUOTES!get2.aspx?type_RUONIA_QUOTES,2,FALSE)/100 -> 91.75 | T30: =VLOOKUP(A30,RUONIA_QUOTES!get2.aspx?type_RUONIA_QUOTES,3,FALSE)/100 -> 92.05 | U30: 8.25 | V30: 7.95 | W30: 3.19 | X30: 10199512.5 | Y30: 1 | Z30: 15027977.61 | AB30: =FairPriceCalc!T19 -> -0.9216793852 | AC30: 0.9186 | AD30: =1.5^(INT(ABS(AB30/AC30))) -> 1.5 | AE30: 509302.6047 | AF30: 1.020371833 | AG30: 29 | AH30: 2019-02-28 | AI30: 2019-03-29 | AJ30: 8.14 | AK30: 191 | AL30: =(AJ30*(AK30-AK29)+AL29*AK29)/AK30 -> 7.723141361 | AM30: 1.00648763 | AN30: 1.041237559 | AO30: =(AN30-1)*100*365/AK30 -> 7.880475909 | AP30: 1.006575579 | AQ30: 1.006335737 | AR30: 1.041975373 | AS30: 1.040396812 | AT30: 8.021471872 | AU30: 7.719809642
A31: =FairPriceCalc!B20 -> RUON-4.19 | B31: =FairPriceCalc!E20 -> 2019-03-29 | C31: =FairPriceCalc!F20 -> 2019-04-30 | D31: 91.66 | E31: 8.34 | F31: 2019-03-29 | G31: 2019-03-20 | H31: 0 | I31: 0 | J31: 0 | K31: 8.767123288 | L31: 80359.45205 | M31: 0.02 | Q31: 0 | R31: =VLOOKUP(A31,RUONIA_QUOTES!get2.aspx?type_RUONIA_QUOTES,4,FALSE)/100 -> 91.75 | S31: =VLOOKUP(A31,RUONIA_QUOTES!get2.aspx?type_RUONIA_QUOTES,2,FALSE)/100 -> 91.6 | T31: =VLOOKUP(A31,RUONIA_QUOTES!get2.aspx?type_RUONIA_QUOTES,3,FALSE)/100 -> 91.9 | U31: 8.4 | V31: 8.1 | W31: 4.19 | X31: 10199512.5 | Y31: 0 | Z31: 15027977.61 | AB31: =FairPriceCalc!T20 -> -0.9082837184 | AC31: 0.9166 | AD31: 1 | AE31: 0 | AF31: 1.024134789 | AG31: 32 | AH31: 2019-03-29 | AI31: 2019-04-30 | AJ31: 8.34 | AK31: 223 | AL31: 7.811659193 | AM31: 1.007337736 | AN31: 1.048877885 | AO31: 8.000191938 | AP31: 1.007390714 | AQ31: 1.007125851 | AR31: 1.049676315 | AS31: 1.047810525 | AT31: 8.130876688 | AU31: 7.825489466
A32: =FairPriceCalc!B21 -> RUON-5.19 | B32: =FairPriceCalc!E21 -> 2019-04-30 | C32: =FairPriceCalc!F21 -> 2019-05-31 | D32: 91.51 | E32: 8.49 | F32: 2019-04-30 | G32: 2019-03-20 | H32: 0 | I32: 0 | J32: 0 | K32: 8.493150685 | L32: 77720.82192 | M32: 0.02 | Q32: 0 | R32: =VLOOKUP(A32,RUONIA_QUOTES!get2.aspx?type_RUONIA_QUOTES,4,FALSE)/100 -> 91.6 | S32: =VLOOKUP(A32,RUONIA_QUOTES!get2.aspx?type_RUONIA_QUOTES,2,FALSE)/100 -> 91.45 | T32: =VLOOKUP(A32,RUONIA_QUOTES!get2.aspx?type_RUONIA_QUOTES,3,FALSE)/100 -> 91.75 | U32: 8.55 | V32: 8.25 | W32: 5.19 | X32: 10199512.5 | Y32: 0 | Z32: 15027977.61 | AB32: =FairPriceCalc!T21 -> -0.8939907752 | AC32: 0.9151 | AD32: 1 | AE32: 0 | AF32: 1.027863846 | AG32: 31 | AH32: 2019-04-30 | AI32: 2019-05-31 | AJ32: 8.49 | AK32: 254 | AL32: 7.894448819 | AM32: 1.0072359 | AN32: 1.05646746 | AO32: 8.114418529 | AP32: 1.007287217 | AQ32: 1.007030657 | AR32: 1.057325534 | AS32: 1.055177322 | AT32: 8.237724393 | AU32: 7.929024547
A33: =FairPriceCalc!B22 -> RUON-6.19 | B33: =FairPriceCalc!E22 -> 2019-05-31 | C33: =FairPriceCalc!F22 -> 2019-06-28 | D33: 91.47 | E33: 8.53 | F33: 2019-05-31 | G33: 2019-03-20 | H33: 0 | I33: 0 | J33: 0 | K33: 7.671232877 | L33: 70168.76712 | M33: 0.02 | Q33: 0 | R33: =VLOOKUP(A33,RUONIA_QUOTES!get2.aspx?type_RUONIA_QUOTES,4,FALSE)/100 -> 91.55 | S33: =VLOOKUP(A33,RUONIA_QUOTES!get2.aspx?type_RUONIA_QUOTES,2,FALSE)/100 -> 91.4 | T33: =VLOOKUP(A33,RUONIA_QUOTES!get2.aspx?type_RUONIA_QUOTES,3,FALSE)/100 -> 91.7 | U33: 8.6 | V33: 8.3 | W33: 6.19 | X33: 10199512.5 | Y33: 0 | Z33: 15027977.61 | AB33: =FairPriceCalc!T22 -> -0.880567499 | AC33: 0.9147 | AD33: 1 | AE33: 0 | AF33: 1.031263701 | AG33: 28 | AH33: 2019-05-31 | AI33: 2019-06-28 | AJ33: 8.53 | AK33: 282 | AL33: 7.957553191 | AM33: 1.006564248 | AN33: 1.063402375 | AO33: 8.206335754 | AP33: 1.006618288 | AQ33: 1.006386708 | AR33: 1.064323219 | AS33: 1.061916431 | AT33: 8.325523016 | AU33: 8.014006141
A34: =FairPriceCalc!B23 -> RUON-7.19 | B34: =FairPriceCalc!E23 -> 2019-06-28 | C34: =FairPriceCalc!F23 -> 2019-07-31 | D34: 91.63 | E34: 8.37 | F34: 2019-06-28 | G34: 2019-03-20 | H34: 0 | I34: 0 | J34: 0 | K34: 9.04109589 | L34: 82843.56164 | M34: 0.02 | Q34: 0 | R34: =VLOOKUP(A34,RUONIA_QUOTES!get2.aspx?type_RUONIA_QUOTES,4,FALSE)/100 -> 91.55 | S34: =VLOOKUP(A34,RUONIA_QUOTES!get2.aspx?type_RUONIA_QUOTES,2,FALSE)/100 -> 91.4 | T34: =VLOOKUP(A34,RUONIA_QUOTES!get2.aspx?type_RUONIA_QUOTES,3,FALSE)/100 -> 91.7 | U34: 8.6 | V34: 8.3 | W34: 7.19 | X34: 10199512.5 | Y34: 0 | Z34: 15027977.61 | AB34: =FairPriceCalc!T23 -> -0.8666613825 | AC34: 0.9163 | AD34: 1 | AE34: 0 | AF34: 1.035214619 | AG34: 33 | AH34: 2019-06-28 | AI34: 2019-07-31 | AJ34: 8.37 | AK34: 315 | AL34: 8.000761905 | AM34: 1.007595228 | AN34: 1.071479159 | AO34: 8.282505683 | AP34: 1.007804726 | AQ34: 1.007531476 | AR34: 1.07262997 | AS34: 1.06991423 | AT34: 8.41585366 | AU34: 8.10117264
A35: =FairPriceCalc!B24 -> RUON-8.19 | B35: =FairPriceCalc!E24 -> 2019-07-31 | C35: =FairPriceCalc!F24 -> 2019-08-30 | D35: 91.59 | E35: 8.41 | F35: 2019-07-31 | G35: 2019-03-20 | H35: 0 | I35: 0 | J35: 0 | K35: 8.219178082 | L35: 75279.45205 | M35: 0.02 | Q35: 0 | R35: =VLOOKUP(A35,RUONIA_QUOTES!get2.aspx?type_RUONIA_QUOTES,4,FALSE)/100 -> 91.55 | S35: =VLOOKUP(A35,RUONIA_QUOTES!get2.aspx?type_RUONIA_QUOTES,2,FALSE)/100 -> 91.4 | T35: =VLOOKUP(A35,RUONIA_QUOTES!get2.aspx?type_RUONIA_QUOTES,3,FALSE)/100 -> 91.7 | U35: 8.6 | V35: 8.3 | W35: 8.19 | X35: 10199512.5 | Y35: 0 | Z35: 15027977.61 | AB35: =FairPriceCalc!T24 -> -0.8522822978 | AC35: 0.9159 | AD35: 1 | AE35: 0 | AF35: 1.038841136 | AG35: 30 | AH35: 2019-07-31 | AI35: 2019-08-30 | AJ35: 8.41 | AK35: 345 | AL35: 8.036347826 | AM35: 1.006935472 | AN35: =AM35*AN34 -> 1.078910373 | AO35: =(AN35-1)*100*365/AK35 -> 8.348488703 | AP35: 1.007092695 | AQ35: 1.006844459 | AR35: 1.080237808 | AS35: 1.077237214 | AT35: =(AR35-1)*100*365/$AK35 -> 8.488927472 | AU35: 8.171473364
M36: ГО total, руб | Q36: =SUM(Q24:Q35) -> 10199512.5 | AE36: =SUM(AE24:AE35) -> 4828465.108
A37: Известная RUONIA | H37: Ставка ож | I37: =SUMPRODUCT(E24:E35,I24:I35)/SUM(I24:I35) -> 7.702527473 | M37: ГО, % ном | Q37: =Q36/(B4*10^6) -> 0.0101995125
A38: Число изв. дней | C38: =SUMIFS(RUONIA!$F:$F,RUONIA!$I:$I,">="&B24,RUONIA!$I:$I,"<"&B2) -> 19 | H38: Дней ож | I38: =SUM(I24:I35) -> 182
A39: Изв. cтавка | C39: =IF(C38>0,SUMIFS(RUONIA!$G:$G,RUONIA!$I:$I,">="&B24,RUONIA!$I:$I,"<"&B2)/C38,0) -> 7.045263158 | H39: Ставка изв | I39: =IF(I40>0,SUMIFS(RUONIA!$G:$G,RUONIA!$I:$I,">="&tBegin,RUONIA!$I:$I,"<"&tEnd)/SUMIFS(RUONIA!$F:$F,RUONIA!$I:$I,">="&tBegin,RUONIA!$I:$I,"<"&tEnd),0) -> 0 | M39: Запас под стресс | Q39: =AE36 -> 4828465.108
H40: Дней изв | I40: =SUMIFS(RUONIA!$F:$F,RUONIA!$I:$I,">="&tBegin,RUONIA!$I:$I,"<"&tEnd) -> 0 | M40: ГО+stress, руб | Q40: =Q36+Q39 -> 15027977.61
H41: Итого ставка ар | I41: =(I37*I38+I39*I40)/(I38+I40) -> 7.702527473 | M41: ГО+stress, % ном | Q41: =Q40/(B4*10^6) -> 0.01502797761
A42: Коррекция | B42: =IF(E2="СР.ГЕОМ",(I41+(tEnd-tBegin)*(AO35-AL35)/365)/I41,1) -> 1 | H42: Итоговая ставка | I42: =I41*kfc -> 7.702527473
A43: Коррекция контрактов | B43: =(1+I41*0.01/365)^(tEnd-tBegin-1) -> 1.038930756 | H43: с ГО+ | I43: =I42-B21*100 -> 7.652206744
H44: с ГО- | I44: =I42+100*B21 -> 7.752848201

Sheet FairPriceCalc
B1: Дата | E1: =CurDate -> 2018-09-19 | N1: ROISfix | O1: =Roisfix_data!A13 -> 19.09.2018 | AT1: OIS кривая | AU1: 1
N2: 1 | O2: =VALUE(RUONIA!E2) -> 7.24 | AT2: Фьючерсная кривая | AU2: 2
B3: Известная RUONIA | K3: =N2 -> 1 | N3: 7 | O3: =VLOOKUP(N3,Roisfix_clean!$A$2:$C$8,3,FALSE) -> 7.34 | AT3: Своя кривая | AU3: 3
B4: Число изв. дней | E4: =tCur-E13 -> 19 | K4: 7 | N4: 14 | O4: =VLOOKUP(N4,Roisfix_clean!$A$2:$C$8,3,FALSE) -> 7.34
B5: Изв. cтавка | E5: =IF(SUMIFS(RUONIA!$G:$G,RUONIA!$I:$I,">="&E13,RUONIA!$I:$I,"<"&E1)/E4=0,O2,SUMIFS(RUONIA!$G:$G,RUONIA!$I:$I,">="&E13,RUONIA!$I:$I,"<"&E1)/E4) -> 7.045263158 | K5: 14 | N5: 30 | O5: =VLOOKUP(N5,Roisfix_clean!$A$2:$C$8,3,FALSE) -> 7.34
B6: Дней в ближайшем | E6: =F13-E13 -> 28 | K6: 30 | N6: 60 | O6: =VLOOKUP(N6,Roisfix_clean!$A$2:$C$8,3,FALSE) -> 7.44 | AD6: Собственная форв кривая | AH6: Расчет купонов по ОФЗ floaters
B7: Осталось дней в ближ | E7: =F13-tCur -> 9 | K7: 60 | N7: 90 | O7: =VLOOKUP(N7,Roisfix_clean!$A$2:$C$8,3,FALSE) -> 7.54 | AD7: Текущая ставка | AE7: =C13&"."&RIGHT(D13,2) -> 9.18 | AF7: 7.2 | AH7: Облигация | AI7: 24019 | AL7: 29011 | AO7: 29012 | AS7: 29006 | AW7: 29009
B8: Процент изв. дней | E8: =E4/E6 -> 0.6785714286 | K8: 90 | N8: 182 | O8: =VLOOKUP(N8,Roisfix_clean!$A$2:$C$8,3,FALSE) -> 7.86 | AD8: Ожидания по ставке | AE8: =C24&"."&RIGHT(D24,2) -> 8.19 | AF8: 8.46 | AH8: Дата выплаты купона | AI8: 2018-10-17 | AJ8: 2019-04-17 | AK8: 2019-10-16 | AL8: 2019-01-30 | AM8: 2019-07-31 | AN8: 2020-01-29 | AO8: 2018-11-21 | AP8: 2019-05-22 | AQ8: 2019-11-20 | AR8: 2020-05-20 | AS8: 2019-02-06 | AT8: 2019-08-07 | AU8: 2020-02-05 | AV8: 2020-08-05 | AW8: 2018-11-21 | AX8: 2019-05-22 | AY8: 2019-11-20 | AZ8: 2020-05-20
B9: pct_yield_coeff | E9: =E6/E7 -> 3.111111111 | K9: 182 | N9: 365 | O9: =VLOOKUP(N9,Roisfix_clean!$A$2:$C$8,3,FALSE) -> 8.34 | AD9: Кфц наклона | AF9: =(AF8-AF7)/11 -> 0.1145454545 | AH9: Начальная дата для расчета купона | AI9: 2017-10-16 | AJ9: 2018-04-16 | AK9: 2018-10-15 | AL9: 2018-01-29 | AM9: 2018-07-30 | AN9: 2019-01-28 | AO9: 2017-11-20 | AP9: 2018-05-21 | AQ9: 2018-11-19 | AR9: 2019-05-20 | AS9: 2018-02-05 | AT9: 2018-08-06 | AU9: 2019-02-04 | AV9: 2019-08-05 | AW9: 2017-11-20 | AX9: 2018-05-21 | AY9: 2018-11-19 | AZ9: 2019-05-20
B10: pct_yield_total | E10: =E4/E6*E5 -> 4.780714286 | AH10: Конченая дата для расчета купона | AI10: 2018-04-16 | AJ10: 2018-10-15 | AK10: 2019-04-15 | AL10: 2018-07-30 | AM10: 2019-01-28 | AN10: 2019-07-29 | AO10: 2018-05-21 | AP10: 2018-11-19 | AQ10: 2019-05-20 | AR10: 2019-11-18 | AS10: 2018-08-06 | AT10: 2019-02-04 | AU10: 2019-08-05 | AV10: 2020-02-03 | AW10: 2018-05-21 | AX10: 2018-11-19 | AY10: 2019-05-20 | AZ10: 2019-11-18
P11: Stress | Q11: =stress*100 -> 1 | AA11: Котировки рынка (ASK) | AH11: Число дней с известной ставкой | AI11: =SUMIFS(RUONIA!$F:$F,RUONIA!$I:$I,">="&AI$9,RUONIA!$I:$I,"<"&AI$10) -> 182 | AJ11: =SUMIFS(RUONIA!$F:$F,RUONIA!$I:$I,">="&AJ$9,RUONIA!$I:$I,"<"&AJ$10) -> 156 | AK11: =SUMIFS(RUONIA!$F:$F,RUONIA!$I:$I,">="&AK$9,RUONIA!$I:$I,"<"&AK$10) -> 0 | AL11: =SUMIFS(RUONIA!$F:$F,RUONIA!$I:$I,">="&AL$9,RUONIA!$I:$I,"<"&AL$10) -> 182 | AM11: =SUMIFS(RUONIA!$F:$F,RUONIA!$I:$I,">="&AM$9,RUONIA!$I:$I,"<"&AM$10) -> 51 | AN11: =SUMIFS(RUONIA!$F:$F,RUONIA!$I:$I,">="&AN$9,RUONIA!$I:$I,"<"&AN$10) -> 0 | AO11: =SUMIFS(RUONIA!$F:$F,RUONIA!$I:$I,">="&AO$9,RUONIA!$I:$I,"<"&AO$10) -> 182 | AP11: =SUMIFS(RUONIA!$F:$F,RUONIA!$I:$I,">="&AP$9,RUONIA!$I:$I,"<"&AP$10) -> 121 | AQ11: =SUMIFS(RUONIA!$F:$F,RUONIA!$I:$I,">="&AQ$9,RUONIA!$I:$I,"<"&AQ$10) -> 0 | AR11: =SUMIFS(RUONIA!$F:$F,RUONIA!$I:$I,">="&AR$9,RUONIA!$I:$I,"<"&AR$10) -> 0 | AS11: =SUMIFS(RUONIA!$F:$F,RUONIA!$I:$I,">="&AS$9,RUONIA!$I:$I,"<"&AS$10) -> 182 | AT11: =SUMIFS(RUONIA!$F:$F,RUONIA!$I:$I,">="&AT$9,RUONIA!$I:$I,"<"&AT$10) -> 44 | AU11: =SUMIFS(RUONIA!$F:$F,RUONIA!$I:$I,">="&AU$9,RUONIA!$I:$I,"<"&AU$10) -> 0 | AV11: =SUMIFS(RUONIA!$F:$F,RUONIA!$I:$I,">="&AV$9,RUONIA!$I:$I,"<"&AV$10) -> 0 | AW11: =SUMIFS(RUONIA!$F:$F,RUONIA!$I:$I,">="&AW$9,RUONIA!$I:$I,"<"&AW$10) -> 182 | AX11: =SUMIFS(RUONIA!$F:$F,RUONIA!$I:$I,">="&AX$9,RUONIA!$I:$I,"<"&AX$10) -> 121 | AY11: =SUMIFS(RUONIA!$F:$F,RUONIA!$I:$I,">="&AY$9,RUONIA!$I:$I,"<"&AY$10) -> 0 | AZ11: =SUMIFS(RUONIA!$F:$F,RUONIA!$I:$I,">="&AZ$9,RUONIA!$I:$I,"<"&AZ$10) -> 0
A12: Месяц | B12: Контракт | E12: Начало ставки | F12: Дата экспирации | G12: Дней до эксп | L12: Ставка OIS (геом. среднее) | N12: Форв. Кривая | O12: Котировка фьючерса из ROISfix | V12: Дата заседания ЦБ | W12: Ожидаемое изменени ставки | X12: Накопленные ожидания по изменению ставки | AA12: Котировки фьючерсов | AB12: Форв кривая | AD12: Своя кривая месячная | AE12: Котировки фьючерсов | AF12: Форвардная кривая
A13: 1 | B13: ="RUON-"&C13&"."&RIGHT(D13,2) -> RUON-9.18 | C13: =MOD(MONTH($E$1)+A13-2,12)+1 -> 9 | D13: =YEAR($E$1)+INT(((MONTH($E$1)-2+A13)/12)) -> 2018 | E13: =Workday2(DATE(D13,C13,1),-1,65,RUHolidays!$A$1:$A$15) -> 2018-08-31 | F13: =Workday2(DATE(D13,C13+1,1),-1,65,RUHolidays!$A$1:$A$15) -> 2018-09-28 | G13: =F13-$E$1 -> 9 | H13: =MAX(IF($K$3:$K$9<=G13,$K$3:$K$9)) -> 7 | I13: =MIN(IF($N$3:$N$9>G13,$N$3:$N$9)) -> 14 | J13: =VLOOKUP($H13,$N$2:$Z$9,2,FALSE) -> 7.34 | K13: =VLOOKUP($I13,$N$2:$Z$9,2,FALSE) -> 7.34 | L13: =IF($G13>0,(K13-J13)/(I13-H13)*($G13-H13)+J13,0) -> 7.34 | M13: =(1+L13*0.01*$G13/365) -> 1.001809863 | N13: =365*100*(M13^(1/$G13)-1) -> 7.334102544 | O13: =100-(N13/$E$9+$E$10) -> 92.86189561 | P13: =L13+$Q$11 -> 8.34 | Q13: =(1+P13*0.01*$G13/365) -> 1.002056438 | R13: =365*100*(Q13^(1/$G13)-1) -> 8.332387323 | S13: =100-(R13/$E$9+$E$10) -> 92.54101836 | T13: =S13-O13 -> -0.3208772506 | AA13: =VLOOKUP(B13,RUONIA_QUOTES!get2.aspx?type_RUONIA_QUOTES,4,FALSE)/100 -> 92.85 | AB13: =E9*(100-AA13-E10) -> 7.371111111 | AD13: =$AF$9*(A13-$A$13)+$AF$7 -> 7.2 | AE13: =100-AD13 -> 92.8 | AF13: =($E$6*$AD$13-$E$4*$E$5)/($E$6-$E$4) -> 7.526666667 | AI13: =MAX(MIN($F13,AI$10)-MIN(MAX($F13,AI$10),MAX(tCur,AI$9,$E13)),0) -> 0 | AJ13: 9 | AK13: 0 | AL13: =MAX(MIN($F13,AL$10)-MIN(MAX($F13,AL$10),MAX(tCur,AL$9,$E13)),0) -> 0 | AM13: 9 | AN13: 0 | AO13: 0 | AP13: 9 | AQ13: 0 | AR13: 0 | AS13: 0 | AT13: 9 | AU13: 0 | AV13: 0 | AW13: 0 | AX13: 9 | AY13: 0 | AZ13: 0
A14: 2 | B14: RUON-10.18 | C14: 10 | D14: 2018 | E14: =Workday2(DATE(D14,C14,1),-1,65,RUHolidays!$A$1:$A$15) -> 2018-09-28 | F14: =Workday2(DATE(D14,C14+1,1),-1,65,RUHolidays!$A$1:$A$15) -> 2018-10-31 | G14: =F14-$E$1 -> 42 | H14: =MAX(IF($K$3:$K$9<=G14,$K$3:$K$9)) -> 30 | I14: =MIN(IF($N$3:$N$9>G14,$N$3:$N$9)) -> 60 | J14: =VLOOKUP(H14,$N$2:$Z$9,2,FALSE) -> 7.34 | K14: =VLOOKUP(I14,$N$2:$Z$9,2,FALSE) -> 7.44 | L14: =IF($G14>0,(K14-J14)/(I14-H14)*($G14-H14)+J14,0) -> 7.38 | M14: =(1+L14*0.01*$G14/365)/(1+L13*0.01*$G13/365) -> 1.00667012 | N14: =365*100*(M14^(1/($G14-$G13))-1) -> 7.353801697 | O14: =100-N14 -> 92.6461983 | P14: =L14+$Q$11 -> 8.38 | Q14: =(1+P14*0.01*$G14/365)/(1+P13*0.01*$G13/365) -> 1.007570733 | R14: =365*100*(Q14^(1/($G14-$G13))-1) -> 8.343104094 | S14: =100-R14 -> 91.65689591 | T14: =S14-O14 -> -0.9893023977 | V14: 2018-10-16 | W14: =N15-N14 -> 0.1794457983 | X14: =W14 -> 0.1794457983 | AA14: =VLOOKUP(B14,RUONIA_QUOTES!get2.aspx?type_RUONIA_QUOTES,4,FALSE)/100 -> 92.62 | AB14: =100-AA14 -> 7.38 | AD14: 7.314545455 | AE14: 92.68545455 | AF14: =AD14 -> 7.314545455 | AI14: 0 | AJ14: 17 | AK14: 16 | AL14: 0 | AM14: 33 | AN14: 0 | AO14: 0 | AP14: 33 | AQ14: 0 | AR14: 0 | AS14: 0 | AT14: 33 | AU14: 0 | AV14: 0 | AW14: 0 | AX14: 33 | AY14: 0 | AZ14: 0
A15: 3 | B15: RUON-11.18 | C15: 11 | D15: 2018 | E15: =Workday2(DATE(D15,C15,1),-1,65,RUHolidays!$A$1:$A$15) -> 2018-10-31 | F15: =Workday2(DATE(D15,C15+1,1),-1,65,RUHolidays!$A$1:$A$15) -> 2018-11-30 | G15: 72 | H15: =MAX(IF($K$3:$K$9<=G15,$K$3:$K$9)) -> 60 | I15: =MIN(IF($N$3:$N$9>G15,$N$3:$N$9)) -> 90 | J15: 7.44 | K15: 7.54 | L15: 7.48 | M15: =(1+L15*0.01*G15/365)/(1+L14*0.01*G14/365) -> 1.006210276 | N15: =365*100*(M15^(1/(G15-G14))-1) -> 7.533247495 | O15: =100-N15 -> 92.4667525 | P15: 8.48 | Q15: =(1+P15*0.01*$G15/365)/(1+P14*0.01*$G14/365) -> 1.007017266 | R15: =365*100*(Q15^(1/($G15-$G14))-1) -> 8.508848913 | S15: =100-R15 -> 91.49115109 | T15: -0.9756014176 | AA15: =VLOOKUP(B15,RUONIA_QUOTES!get2.aspx?type_RUONIA_QUOTES,4,FALSE)/100 -> 92.45 | AB15: 7.55 | AD15: 7.429090909 | AE15: 92.57090909 | AF15: 7.429090909 | AI15: 0 | AJ15: 0 | AK15: 30 | AL15: 0 | AM15: 30 | AN15: 0 | AO15: 0 | AP15: 19 | AQ15: 11 | AR15: 0 | AS15: 0 | AT15: 30 | AU15: 0 | AV15: 0 | AW15: 0 | AX15: 19 | AY15: 11 | AZ15: 0
A16: 4 | B16: RUON-12.18 | C16: 12 | D16: 2018 | E16: =Workday2(DATE(D16,C16,1),-1,65,RUHolidays!$A$1:$A$15) -> 2018-11-30 | F16: =Workday2(DATE(D16,C16+1,1),-1,65,RUHolidays!$A$1:$A$15) -> 2018-12-31 | G16: 103 | H16: =MAX(IF($K$3:$K$9<=G16,$K$3:$K$9)) -> 90 | I16: =MIN(IF($N$3:$N$9>G16,$N$3:$N$9)) -> 182 | J16: 7.54 | K16: 7.86 | L16: 7.585217391 | M16: 1.0065531 | N16: 7.691386031 | O16: 92.30861397 | P16: 8.585217391 | Q16: 1.007375728 | R16: 8.653480373 | S16: 91.34651963 | T16: -0.9620943421 | V16: 2018-12-14 | W16: =N17-N15 -> 0.3239079791 | X16: =W16+X14 -> 0.5033537775 | AA16: =VLOOKUP(B16,RUONIA_QUOTES!get2.aspx?type_RUONIA_QUOTES,4,FALSE)/100 -> 92.32 | AB16: 7.68 | AD16: 7.543636364 | AE16: 92.45636364 | AF16: 7.543636364 | AI16: 0 | AJ16: 0 | AK16: 31 | AL16: 0 | AM16: 31 | AN16: 0 | AO16: 0 | AP16: 0 | AQ16: 31 | AR16: 0 | AS16: 0 | AT16: 31 | AU16: 0 | AV16: 0 | AW16: 0 | AX16: 0 | AY16: 31 | AZ16: 0
A17: 5 | B17: RUON-1.19 | C17: 1 | D17: 2019 | E17: =Workday2(DATE(D17,C17,1),-1,65,RUHolidays!$A$1:$A$15) -> 2018-12-31 | F17: =Workday2(DATE(D17,C17+1,1),-1,65,RUHolidays!$A$1:$A$15) -> 2019-01-31 | G17: 134 | H17: =MAX(IF($K$3:$K$9<=G17,$K$3:$K$9)) -> 90 | I17: =MIN(IF($N$3:$N$9>G17,$N$3:$N$9)) -> 182 | J17: 7.54 | K17: 7.86 | L17: 7.693043478 | M17: 1.006694793 | N17: 7.857155474 | O17: 92.14284453 | P17: 8.693043478 | Q17: 1.007505573 | R17: 8.805270074 | S17: 91.19472993 | T17: -0.9481145997 | AA17: =VLOOKUP(B17,RUONIA_QUOTES!get2.aspx?type_RUONIA_QUOTES,4,FALSE)/100 -> 92.19 | AB17: 7.81 | AD17: 7.658181818 | AE17: 92.34181818 | AF17: 7.658181818 | AI17: 0 | AJ17: 0 | AK17: 31 | AL17: 0 | AM17: 28 | AN17: 3 | AO17: 0 | AP17: 0 | AQ17: 31 | AR17: 0 | AS17: 0 | AT17: 31 | AU17: 0 | AV17: 0 | AW17: 0 | AX17: 0 | AY17: 31 | AZ17: 0
A18: 6 | B18: RUON-2.19 | C18: 2 | D18: 2019 | E18: =Workday2(DATE(D18,C18,1),-1,65,RUHolidays!$A$1:$A$15) -> 2019-01-31 | F18: =Workday2(DATE(D18,C18+1,1),-1,65,RUHolidays!$A$1:$A$15) -> 2019-02-28 | G18: 162 | H18: =MAX(IF($K$3:$K$9<=G18,$K$3:$K$9)) -> 90 | I18: =MIN(IF($N$3:$N$9>G18,$N$3:$N$9)) -> 182 | J18: 7.54 | K18: 7.86 | L18: 7.790434783 | M18: 1.006159799 | N18: 8.005986411 | O18: 91.99401359 | P18: 8.790434783 | Q18: 1.006881283 | R18: 8.940615988 | S18: 91.05938401 | T18: -0.9346295765 | V18: 2019-02-08 | W18: =N19-N17 -> 0.2408505343 | X18: =W18+X16 -> 0.7442043117 | AA18: =VLOOKUP(B18,RUONIA_QUOTES!get2.aspx?type_RUONIA_QUOTES,4,FALSE)/100 -> 92.05 | AB18: 7.95 | AD18: 7.772727273 | AE18: 92.22727273 | AF18: 7.772727273 | AI18: 0 | AJ18: 0 | AK18: 28 | AL18: 0 | AM18: 0 | AN18: 28 | AO18: 0 | AP18: 0 | AQ18: 28 | AR18: 0 | AS18: 0 | AT18: 4 | AU18: 24 | AV18: 0 | AW18: 0 | AX18: 0 | AY18: 28 | AZ18: 0
A19: 7 | B19: RUON-3.19 | C19: 3 | D19: 2019 | E19: =Workday2(DATE(D19,C19,1),-1,65,RUHolidays!$A$1:$A$15) -> 2019-02-28 | F19: =Workday2(DATE(D19,C19+1,1),-1,65,RUHolidays!$A$1:$A$15) -> 2019-03-29 | G19: 191 | H19: =MAX(IF($K$3:$K$9<=G19,$K$3:$K$9)) -> 182 | I19: =MIN(IF($N$3:$N$9>G19,$N$3:$N$9)) -> 365 | J19: 7.86 | K19: 8.34 | L19: 7.883606557 | M19: 1.006454057 | N19: 8.098006009 | O19: 91.90199399 | P19: 8.883606557 | Q19: 1.007191173 | R19: 9.019685394 | S19: 90.98031461 | T19: -0.9216793852 | V19: 2019-03-22 | W19: =N20-N19 -> 0.007041467774 | X19: =W19+X18 -> 0.7512457795 | AA19: =VLOOKUP(B19,RUONIA_QUOTES!get2.aspx?type_RUONIA_QUOTES,4,FALSE)/100 -> 91.9 | AB19: 8.1 | AD19: 7.887272727 | AE19: 92.11272727 | AF19: 7.887272727 | AI19: 0 | AJ19: 0 | AK19: 29 | AL19: 0 | AM19: 0 | AN19: 29 | AO19: 0 | AP19: 0 | AQ19: 29 | AR19: 0 | AS19: 0 | AT19: 0 | AU19: 29 | AV19: 0 | AW19: 0 | AX19: 0 | AY19: 29 | AZ19: 0
A20: 8 | B20: RUON-4.19 | C20: 4 | D20: 2019 | E20: =Workday2(DATE(D20,C20,1),-1,65,RUHolidays!$A$1:$A$15) -> 2019-03-29 | F20: =Workday2(DATE(D20,C20+1,1),-1,65,RUHolidays!$A$1:$A$15) -> 2019-04-30 | G20: 223 | H20: =MAX(IF($K$3:$K$9<=G20,$K$3:$K$9)) -> 182 | I20: =MIN(IF($N$3:$N$9>G20,$N$3:$N$9)) -> 365 | J20: 7.86 | K20: 8.34 | L20: 7.967540984 | M20: 1.007130307 | N20: 8.105047476 | O20: 91.89495252 | P20: 8.967540984 | Q20: 1.007932419 | R20: 9.013331195 | S20: 90.98666881 | T20: -0.9082837184 | V20: 2019-04-26 | W20: =N21-N20 -> 0.1002250389 | X20: =W20+X19 -> 0.8514708184 | AA20: =VLOOKUP(B20,RUONIA_QUOTES!get2.aspx?type_RUONIA_QUOTES,4,FALSE)/100 -> 91.75 | AB20: 8.25 | AD20: 8.001818182 | AE20: 91.99818182 | AF20: 8.001818182 | AI20: 0 | AJ20: 0 | AK20: 17 | AL20: 0 | AM20: 0 | AN20: 32 | AO20: 0 | AP20: 0 | AQ20: 32 | AR20: 0 | AS20: 0 | AT20: 0 | AU20: 32 | AV20: 0 | AW20: 0 | AX20: 0 | AY20: 32 | AZ20: 0
A21: 9 | B21: RUON-5.19 | C21: 5 | D21: 2019 | E21: =Workday2(DATE(D21,C21,1),-1,65,RUHolidays!$A$1:$A$15) -> 2019-04-30 | F21: =Workday2(DATE(D21,C21+1,1),-1,65,RUHolidays!$A$1:$A$15) -> 2019-05-31 | G21: 254 | H21: =MAX(IF($K$3:$K$9<=G21,$K$3:$K$9)) -> 182 | I21: =MIN(IF($N$3:$N$9>G21,$N$3:$N$9)) -> 365 | J21: 7.86 | K21: 8.34 | L21: 8.048852459 | M21: 1.006992412 | N21: 8.205272515 | O21: 91.79472748 | P21: 9.048852459 | Q21: 1.00775711 | R21: 9.099263291 | S21: 90.90073671 | T21: -0.8939907752 | AA21: =VLOOKUP(B21,RUONIA_QUOTES!get2.aspx?type_RUONIA_QUOTES,4,FALSE)/100 -> 91.6 | AB21: 8.4 | AD21: 8.116363636 | AE21: 91.88363636 | AF21: 8.116363636 | AI21: 0 | AJ21: 0 | AK21: 0 | AL21: 0 | AM21: 0 | AN21: 31 | AO21: 0 | AP21: 0 | AQ21: 20 | AR21: 11 | AS21: 0 | AT21: 0 | AU21: 31 | AV21: 0 | AW21: 0 | AX21: 0 | AY21: 20 | AZ21: 11
A22: 10 | B22: RUON-6.19 | C22: 6 | D22: 2019 | E22: =Workday2(DATE(D22,C22,1),-1,65,RUHolidays!$A$1:$A$15) -> 2019-05-31 | F22: =Workday2(DATE(D22,C22+1,1),-1,65,RUHolidays!$A$1:$A$15) -> 2019-06-28 | G22: 282 | H22: =MAX(IF($K$3:$K$9<=G22,$K$3:$K$9)) -> 182 | I22: =MIN(IF($N$3:$N$9>G22,$N$3:$N$9)) -> 365 | J22: 7.86 | K22: 8.34 | L22: 8.122295082 | M22: 1.00638429 | N22: 8.296867397 | O22: 91.7031326 | P22: 9.122295082 | Q22: 1.007064173 | R22: 9.177434896 | S22: 90.8225651 | T22: -0.880567499 | V22: 2019-06-14 | W22: =N23-N21 -> 0.1839382989 | X22: =W22+X20 -> 1.035409117 | AA22: =VLOOKUP(B22,RUONIA_QUOTES!get2.aspx?type_RUONIA_QUOTES,4,FALSE)/100 -> 91.55 | AB22: 8.45 | AD22: 8.230909091 | AE22: 91.76909091 | AF22: 8.230909091 | AI22: 0 | AJ22: 0 | AK22: 0 | AL22: 0 | AM22: 0 | AN22: 28 | AO22: 0 | AP22: 0 | AQ22: 0 | AR22: 28 | AS22: 0 | AT22: 0 | AU22: 28 | AV22: 0 | AW22: 0 | AX22: 0 | AY22: 0 | AZ22: 28
A23: 11 | B23: RUON-7.19 | C23: 7 | D23: 2019 | E23: =Workday2(DATE(D23,C23,1),-1,65,RUHolidays!$A$1:$A$15) -> 2019-06-28 | F23: =Workday2(DATE(D23,C23+1,1),-1,65,RUHolidays!$A$1:$A$15) -> 2019-07-31 | G23: 315 | H23: =MAX(IF($K$3:$K$9<=G23,$K$3:$K$9)) -> 182 | I23: =MIN(IF($N$3:$N$9>G23,$N$3:$N$9)) -> 365 | J23: 7.86 | K23: 8.34 | L23: 8.208852459 | M23: 1.007612725 | N23: =365*100*(M23^(1/(G23-G22))-1) -> 8.389210814 | O23: 91.61078919 | P23: 9.208852459 | Q23: 1.008402365 | R23: 9.255872197 | S23: 90.7441278 | T23: -0.8666613825 | V23: 2019-07-26 | W23: =N24-N23 -> 0.09297830513 | X23: =W23+X22 -> 1.128387422 | AA23: =VLOOKUP(B23,RUONIA_QUOTES!get2.aspx?type_RUONIA_QUOTES,4,FALSE)/100 -> 91.55 | AB23: 8.45 | AD23: 8.345454545 | AE23: 91.65454545 | AF23: 8.345454545 | AI23: 0 | AJ23: 0 | AK23: 0 | AL23: 0 | AM23: 0 | AN23: 31 | AO23: 0 | AP23: 0 | AQ23: 0 | AR23: 33 | AS23: 0 | AT23: 0 | AU23: 33 | AV23: 0 | AW23: 0 | AX23: 0 | AY23: 0 | AZ23: 33
A24: 12 | B24: RUON-8.19 | C24: 8 | D24: 2019 | E24: =Workday2(DATE(D24,C24,1),-1,65,RUHolidays!$A$1:$A$15) -> 2019-07-31 | F24: =Workday2(DATE(D24,C24+1,1),-1,65,RUHolidays!$A$1:$A$15) -> 2019-08-30 | G24: 345 | H24: =MAX(IF($K$3:$K$9<=G24,$K$3:$K$9)) -> 182 | I24: =MIN(IF($N$3:$N$9>G24,$N$3:$N$9)) -> 365 | J24: 7.86 | K24: 8.34 | L24: 8.287540984 | M24: 1.006995205 | N24: 8.482189119 | O24: 91.51781088 | P24: 9.287540984 | Q24: 1.007700686 | R24: 9.334471417 | S24: 90.66552858 | T24: -0.8522822978 | AA24: =VLOOKUP(B24,RUONIA_QUOTES!get2.aspx?type_RUONIA_QUOTES,4,FALSE)/100 -> 91.55 | AB24: 8.45 | AD24: 8.46 | AE24: 91.54 | AF24: =AD24 -> 8.46 | AI24: 0 | AJ24: 0 | AK24: 0 | AL24: 0 | AM24: 0 | AN24: 0 | AO24: 0 | AP24: 0 | AQ24: 0 | AR24: 30 | AS24: 0 | AT24: 0 | AU24: 5 | AV24: 25 | AW24: 0 | AX24: 0 | AY24: 0 | AZ24: 30
AH26: Сумма прогнозных ставок | AI26: =SUMPRODUCT(CHOOSE($AE$28,$N$13:$N$24,$AB$13:$AB$24,$AF$13:$AF$24),AI13:AI24) -> 0 | AJ26: 191.0215517 | AK26: 1422.45864 | AL26: 0 | AM26: 993.113124 | AN26: 1488.68405 | AO26: 0 | AP26: 451.8140813 | AQ26: 1447.347272 | AR26: 853.8799152 | AS26: 0 | AT26: 1048.708536 | AU26: 1492.278005 | AV26: 212.054728 | AW26: 0 | AX26: 451.8140813 | AY26: 1447.347272 | AZ26: 853.8799152
V27: Выбрать кривую | X27: OIS кривая | AH27: Сумма известных ставок | AI27: =SUMIFS(RUONIA!$G:$G,RUONIA!$I:$I,">="&AI$9,RUONIA!$I:$I,"<"&AI$10) -> 1354.02 | AJ27: =SUMIFS(RUONIA!$G:$G,RUONIA!$I:$I,">="&AJ$9,RUONIA!$I:$I,"<"&AJ$10) -> 1093.82 | AK27: =SUMIFS(RUONIA!$G:$G,RUONIA!$I:$I,">="&AK$9,RUONIA!$I:$I,"<"&AK$10) -> 0 | AL27: =SUMIFS(RUONIA!$G:$G,RUONIA!$I:$I,">="&AL$9,RUONIA!$I:$I,"<"&AL$10) -> 1283.21 | AM27: =SUMIFS(RUONIA!$G:$G,RUONIA!$I:$I,">="&AM$9,RUONIA!$I:$I,"<"&AM$10) -> 359.87 | AN27: =SUMIFS(RUONIA!$G:$G,RUONIA!$I:$I,">="&AN$9,RUONIA!$I:$I,"<"&AN$10) -> 0 | AO27: =SUMIFS(RUONIA!$G:$G,RUONIA!$I:$I,">="&AO$9,RUONIA!$I:$I,"<"&AO$10) -> 1319.9 | AP27: =SUMIFS(RUONIA!$G:$G,RUONIA!$I:$I,">="&AP$9,RUONIA!$I:$I,"<"&AP$10) -> 850.98 | AQ27: =SUMIFS(RUONIA!$G:$G,RUONIA!$I:$I,">="&AQ$9,RUONIA!$I:$I,"<"&AQ$10) -> 0 | AR27: =SUMIFS(RUONIA!$G:$G,RUONIA!$I:$I,">="&AR$9,RUONIA!$I:$I,"<"&AR$10) -> 0 | AS27: =SUMIFS(RUONIA!$G:$G,RUONIA!$I:$I,">="&AS$9,RUONIA!$I:$I,"<"&AS$10) -> 1282.95 | AT27: =SUMIFS(RUONIA!$G:$G,RUONIA!$I:$I,">="&AT$9,RUONIA!$I:$I,"<"&AT$10) -> 309.76 | AU27: =SUMIFS(RUONIA!$G:$G,RUONIA!$I:$I,">="&AU$9,RUONIA!$I:$I,"<"&AU$10) -> 0 | AV27: =SUMIFS(RUONIA!$G:$G,RUONIA!$I:$I,">="&AV$9,RUONIA!$I:$I,"<"&AV$10) -> 0 | AW27: =SUMIFS(RUONIA!$G:$G,RUONIA!$I:$I,">="&AW$9,RUONIA!$I:$I,"<"&AW$10) -> 1319.9 | AX27: =SUMIFS(RUONIA!$G:$G,RUONIA!$I:$I,">="&AX$9,RUONIA!$I:$I,"<"&AX$10) -> 850.98 | AY27: =SUMIFS(RUONIA!$G:$G,RUONIA!$I:$I,">="&AY$9,RUONIA!$I:$I,"<"&AY$10) -> 0 | AZ27: =SUMIFS(RUONIA!$G:$G,RUONIA!$I:$I,">="&AZ$9,RUONIA!$I:$I,"<"&AZ$10) -> 0
AE28: =VLOOKUP(X27,AT1:AU3,2,FALSE) -> 1 | AH28: Итого | AI28: =AI26+AI27 -> 1354.02 | AJ28: 1284.841552 | AK28: 1422.45864 | AL28: =AL26+AL27 -> 1283.21 | AM28: 1352.983124 | AN28: 1488.68405 | AO28: =AO26+AO27 -> 1319.9 | AP28: 1302.794081 | AQ28: 1447.347272 | AR28: 853.8799152 | AS28: 1282.95 | AT28: 1358.468536 | AU28: 1492.278005 | AV28: 212.054728 | AW28: 1319.9 | AX28: 1302.794081 | AY28: 1447.347272 | AZ28: 853.8799152
AH29: Дней c возможностью расчета | AI29: =AI11+SUM(AI13:AI24) -> 182 | AJ29: 182 | AK29: 182 | AL29: =AL11+SUM(AL13:AL24) -> 182 | AM29: 182 | AN29: 182 | AO29: =AO11+SUM(AO13:AO24) -> 182 | AP29: 182 | AQ29: 182 | AR29: 102 | AS29: 182 | AT29: 182 | AU29: 182 | AV29: 25 | AW29: =AW11+SUM(AW13:AW24) -> 182 | AX29: 182 | AY29: 182 | AZ29: 102
AH30: Прогнозируемая ставка | AI30: =IF(AI29=182,AI28/AI29,"") -> 7.43967033 | AJ30: 7.059568966 | AK30: 7.815706811 | AL30: =IF(AL29=182,AL28/AL29,"") -> 7.050604396 | AM30: 7.433973209 | AN30: 8.179582691 | AO30: =IF(AO29=182,AO28/AO29,"") -> 7.252197802 | AP30: 7.158209238 | AQ30: 7.952457541 | AS30: 7.049175824 | AT30: 7.464112835 | AU30: 8.199329697 | AW30: 7.252197802 | AX30: 7.158209238 | AY30: 7.952457541
AH31: Премия | AI31: 0.3 | AL31: 0.97 | AO31: 0.4 | AS31: 1.2 | AW31: 1.5
AH32: Купон | AI32: =AI30+AI31 -> 7.73967033 | AJ32: =AJ30+AI31 -> 7.359568966 | AK32: =AK30+AI31 -> 8.115706811 | AL32: =AL30+$AL$31 -> 8.020604396 | AM32: =AM30+$AL$31 -> 8.403973209 | AN32: =AN30+$AL$31 -> 9.149582691 | AO32: =AO30+$AO$31 -> 7.652197802 | AP32: =AP30+$AO$31 -> 7.558209238 | AQ32: 8.352457541 | AS32: =AS30+$AS$31 -> 8.249175824 | AT32: =AT30+$AS$31 -> 8.664112835 | AU32: =AU30+$AS$31 -> 9.399329697 | AV32: =AV30+$AS$31 ->  | AW32: =AW30+$AW$31 -> 8.752197802 | AX32: =AX30+$AW$31 -> 8.658209238 | AY32: 9.452457541

Sheet RUONIA
A1: d | B1: r | E1: Ставка | F1: Дней | G1: Ставка*Дней
A2: *2018.09.18 | B2: 724 | E2: =VALUE(B2)/100 -> 7.24 | F2: =CurDate-I2 -> 1 | G2: =E2*F2 -> 7.24 | I2: =DATE(MID($A2,2,4), MID($A2,7,2), RIGHT($A2,2)) -> 2018-09-18 | J2: =E2 -> 7.24 | K2: 7.31 | L2: =(1+0.01*G2/365) -> 1.000198356 | N2: =K2-J2 -> 0.07
A3: *2018.09.17 | B3: 724 | E3: =VALUE(B3)/100 -> 7.24 | F3: =I2-I3 -> 1 | G3: =E3*F3 -> 7.24 | I3: =DATE(MID($A3,2,4), MID($A3,7,2), RIGHT($A3,2)) -> 2018-09-17 | J3: =E3 -> 7.24 | K3: 7.12 | L3: =(1+0.01*G3/365) -> 1.000198356 | N3: =K3-J3 -> -0.12
A4: *2018.09.14 | B4: 702 | E4: 7.02 | F4: =I3-I4 -> 3 | G4: =E4*F4 -> 21.06 | I4: 2018-09-14 | J4: 7.02 | K4: 7.12 | L4: 1.000576986 | N4: 0.1
A5: *2018.09.13 | B5: 700 | E5: 7 | F5: 1 | G5: 7 | I5: 2018-09-13 | J5: 7 | K5: 7.09 | L5: 1.000191781 | N5: 0.09
A6: *2018.09.12 | B6: 681 | E6: 6.81 | F6: 1 | G6: 6.81 | I6: 2018-09-12 | J6: 6.81 | K6: 7.1 | L6: 1.000186575 | N6: 0.29
A7: *2018.09.11 | B7: 701 | E7: 7.01 | F7: 1 | G7: 7.01 | I7: 2018-09-11 | J7: 7.01 | K7: 7.07 | L7: 1.000192055 | N7: 0.06
A8: *2018.09.10 | B8: 698 | E8: 6.98 | F8: 1 | G8: 6.98 | I8: 2018-09-10 | J8: 6.98 | K8: 7.11 | L8: 1.000191233 | N8: 0.13
A9: *2018.09.07 | B9: 697 | E9: 6.97 | F9: 3 | G9: 20.91 | I9: 2018-09-07 | J9: 6.97 | K9: 7.09 | L9: 1.000572877 | N9: 0.12
A10: *2018.09.06 | B10: 687 | E10: 6.87 | F10: 1 | G10: 6.87 | I10: 2018-09-06 | J10: 6.87 | K10: 7.14 | L10: 1.000188219 | N10: 0.27
A11: *2018.09.05 | B11: 700 | E11: 7 | F11: 1 | G11: 7 | I11: 2018-09-05 | J11: 7 | K11: 7.14 | L11: 1.000191781 | N11: 0.14
A12: *2018.09.04 | B12: 717 | E12: 7.17 | F12: 1 | G12: 7.17 | I12: 2018-09-04 | J12: 7.17 | K12: 7.05 | L12: 1.000196438 | N12: -0.12
A13: *2018.09.03 | B13: 715 | E13: 7.15 | F13: 1 | G13: 7.15 | I13: 2018-09-03 | J13: 7.15 | K13: 7.04 | L13: 1.00019589 | N13: -0.11
A14: *2018.08.31 | B14: 714 | E14: 7.14 | F14: 3 | G14: 21.42 | I14: 2018-08-31 | J14: 7.14 | K14: 7.05 | L14: 1.000586849 | N14: -0.09
A15: *2018.08.30 | B15: 714 | E15: 7.14 | F15: 1 | G15: 7.14 | I15: 2018-08-30 | J15: 7.14 | K15: 7.07 | L15: 1.000195616 | N15: -0.07
A16: *2018.08.29 | B16: 718 | E16: 7.18 | F16: 1 | G16: 7.18 | I16: 2018-08-29 | J16: 7.18 | K16: 7.18 | L16: 1.000196712 | N16: 0
A17: *2018.08.28 | B17: 726 | E17: 7.26 | F17: 1 | G17: 7.26 | I17: 2018-08-28 | J17: 7.26 | K17: 6.93 | L17: 1.000198904 | N17: -0.33
A18: *2018.08.27 | B18: 722 | E18: 7.22 | F18: 1 | G18: 7.22 | I18: 2018-08-27 | J18: 7.22 | K18: 6.91 | L18: 1.000197808 | N18: -0.31
A19: *2018.08.24 | B19: 697 | E19: 6.97 | F19: 3 | G19: 20.91 | I19: 2018-08-24 | J19: 6.97 | K19: 6.94 | L19: 1.000572877 | N19: -0.03
A20: *2018.08.23 | B20: 673 | E20: 6.73 | F20: 1 | G20: 6.73 | I20: 2018-08-23 | J20: 6.73 | K20: 6.88 | L20: 1.000184384 | N20: 0.15
A21: *2018.08.22 | B21: 696 | E21: 6.96 | F21: 1 | G21: 6.96 | I21: 2018-08-22 | J21: 6.96 | K21: 6.97 | L21: 1.000190685 | N21: 0.01
A22: *2018.08.21 | B22: 691 | E22: 6.91 | F22: 1 | G22: 6.91 | I22: 2018-08-21 | J22: 6.91 | K22: 7.02 | L22: 1.000189315 | N22: 0.11
A23: *2018.08.20 | B23: 697 | E23: 6.97 | F23: 1 | G23: 6.97 | I23: 2018-08-20 | J23: 6.97 | L23: 1.000190959
A24: *2018.08.17 | B24: 695 | E24: 6.95 | F24: 3 | G24: 20.85 | I24: 2018-08-17 | J24: 6.95 | L24: 1.000571233
A25: *2018.08.16 | B25: 708 | E25: 7.08 | F25: 1 | G25: 7.08 | I25: 2018-08-16 | J25: 7.08 | L25: 1.000193973
A26: *2018.08.15 | B26: 709 | E26: 7.09 | F26: 1 | G26: 7.09 | I26: 2018-08-15 | J26: 7.09 | L26: 1.000194247
A27: *2018.08.14 | B27: 718 | E27: 7.18 | F27: 1 | G27: 7.18 | I27: 2018-08-14 | J27: 7.18 | L27: 1.000196712
A28: *2018.08.13 | B28: 714 | E28: 7.14 | F28: 1 | G28: 7.14 | I28: 2018-08-13 | J28: 7.14 | L28: 1.000195616
A29: *2018.08.10 | B29: 715 | E29: 7.15 | F29: 3 | G29: 21.45 | I29: 2018-08-10 | J29: 7.15 | L29: 1.000587671
A30: *2018.08.09 | B30: 710 | E30: 7.1 | F30: 1 | G30: 7.1 | I30: 2018-08-09 | J30: 7.1 | L30: 1.000194521
A31: *2018.08.08 | B31: 702 | E31: 7.02 | F31: 1 | G31: 7.02 | I31: 2018-08-08 | J31: 7.02 | L31: 1.000192329
A32: *2018.08.07 | B32: 685 | E32: 6.85 | F32: 1 | G32: 6.85 | I32: 2018-08-07 | J32: 6.85 | L32: 1.000187671
A33: *2018.08.06 | B33: 686 | E33: 6.86 | F33: 1 | G33: 6.86 | I33: 2018-08-06 | J33: 6.86 | L33: 1.000187945
A34: *2018.08.03 | B34: 688 | E34: 6.88 | F34: 3 | G34: 20.64 | I34: 2018-08-03 | J34: 6.88 | L34: 1.000565479
A35: *2018.08.02 | B35: 697 | E35: 6.97 | F35: 1 | G35: 6.97 | I35: 2018-08-02 | J35: 6.97 | L35: 1.000190959
A36: *2018.08.01 | B36: 704 | E36: 7.04 | F36: 1 | G36: 7.04 | I36: 2018-08-01 | J36: 7.04 | L36: 1.000192877
A37: *2018.07.31 | B37: 774 | E37: 7.74 | F37: 1 | G37: 7.74 | I37: 2018-07-31 | J37: 7.74 | L37: 1.000212055
A38: *2018.07.30 | B38: 772 | E38: 7.72 | F38: 1 | G38: 7.72 | I38: 2018-07-30 | J38: 7.72 | L38: 1.000211507
A39: *2018.07.27 | B39: 771 | E39: 7.71 | F39: 3 | G39: 23.13 | I39: 2018-07-27 | J39: 7.71 | L39: 1.000633699
A40: *2018.07.26 | B40: 719 | E40: 7.19 | F40: 1 | G40: 7.19 | I40: 2018-07-26 | J40: 7.19 | L40: 1.000196986
A41: *2018.07.25 | B41: 700 | E41: 7 | F41: 1 | G41: 7 | I41: 2018-07-25 | J41: 7 | L41: 1.000191781
A42: *2018.07.24 | B42: 680 | E42: 6.8 | F42: 1 | G42: 6.8 | I42: 2018-07-24 | J42: 6.8 | L42: 1.000186301
A43: *2018.07.23 | B43: 676 | E43: 6.76 | F43: 1 | G43: 6.76 | I43: 2018-07-23 | J43: 6.76 | L43: 1.000185205
A44: *2018.07.20 | B44: 701 | E44: 7.01 | F44: 3 | G44: 21.03 | I44: 2018-07-20 | J44: 7.01 | L44: 1.000576164
A45: *2018.07.19 | B45: 709 | E45: 7.09 | F45: 1 | G45: 7.09 | I45: 2018-07-19 | J45: 7.09 | L45: 1.000194247
A46: *2018.07.18 | B46: 705 | E46: 7.05 | F46: 1 | G46: 7.05 | I46: 2018-07-18 | J46: 7.05 | L46: 1.000193151
A47: *2018.07.17 | B47: 719 | E47: 7.19 | F47: 1 | G47: 7.19 | I47: 2018-07-17 | J47: 7.19 | L47: 1.000196986
A48: *2018.07.16 | B48: 714 | E48: 7.14 | F48: 1 | G48: 7.14 | I48: 2018-07-16 | J48: 7.14 | L48: 1.000195616
A49: *2018.07.13 | B49: 713 | E49: 7.13 | F49: 3 | G49: 21.39 | I49: 2018-07-13 | J49: 7.13 | L49: 1.000586027
A50: *2018.07.12 | B50: 709 | E50: 7.09 | F50: 1 | G50: 7.09 | I50: 2018-07-12 | J50: 7.09 | L50: 1.000194247
A51: *2018.07.11 | B51: 706 | E51: 7.06 | F51: 1 | G51: 7.06 | I51: 2018-07-11 | J51: 7.06 | L51: 1.000193425
A52: *2018.07.10 | B52: 703 | E52: 7.03 | F52: 1 | G52: 7.03 | I52: 2018-07-10 | J52: 7.03 | L52: 1.000192603
A53: *2018.07.09 | B53: 664 | E53: 6.64 | F53: 1 | G53: 6.64 | I53: 2018-07-09 | J53: 6.64 | L53: 1.000181918
A54: *2018.07.06 | B54: 673 | E54: 6.73 | F54: 3 | G54: 20.19 | I54: 2018-07-06 | J54: 6.73 | L54: 1.000553151
A55: *2018.07.05 | B55: 700 | E55: 7 | F55: 1 | G55: 7 | I55: 2018-07-05 | J55: 7 | L55: 1.000191781
A56: *2018.07.04 | B56: 702 | E56: 7.02 | F56: 1 | G56: 7.02 | I56: 2018-07-04 | J56: 7.02 | L56: 1.000192329
A57: *2018.07.03 | B57: 672 | E57: 6.72 | F57: 1 | G57: 6.72 | I57: 2018-07-03 | J57: 6.72 | L57: 1.00018411
A58: *2018.07.02 | B58: 701 | E58: 7.01 | F58: 1 | G58: 7.01 | I58: 2018-07-02 | J58: 7.01 | L58: 1.000192055
A59: *2018.06.29 | B59: 716 | E59: 7.16 | F59: 3 | G59: 21.48 | I59: 2018-06-29 | J59: 7.16 | L59: 1.000588493
A60: *2018.06.28 | B60: 713 | E60: 7.13 | F60: 1 | G60: 7.13 | I60: 2018-06-28 | J60: 7.13 | L60: 1.000195342
A61: *2018.06.27 | B61: 721 | E61: 7.21 | F61: 1 | G61: 7.21 | I61: 2018-06-27 | J61: 7.21 | L61: 1.000197534
A62: *2018.06.26 | B62: 727 | E62: 7.27 | F62: 1 | G62: 7.27 | I62: 2018-06-26 | J62: 7.27 | L62: 1.000199178
A63: *2018.06.25 | B63: 711 | E63: 7.11 | F63: 1 | G63: 7.11 | I63: 2018-06-25 | J63: 7.11 | L63: 1.000194795
A64: *2018.06.22 | B64: 696 | E64: 6.96 | F64: 3 | G64: 20.88 | I64: 2018-06-22 | J64: 6.96 | L64: 1.000572055
A65: *2018.06.21 | B65: 696 | E65: 6.96 | F65: 1 | G65: 6.96 | I65: 2018-06-21 | J65: 6.96 | L65: 1.000190685
A66: *2018.06.20 | B66: 699 | E66: 6.99 | F66: 1 | G66: 6.99 | I66: 2018-06-20 | J66: 6.99 | L66: 1.000191507
A67: *2018.06.19 | B67: 700 | E67: =VALUE(B67)/100 -> 7 | F67: 1 | G67: =E67*F67 -> 7 | I67: =DATE(MID($A67,2,4), MID($A67,7,2), RIGHT($A67,2)) -> 2018-06-19 | J67: =E67 -> 7 | L67: =(1+0.01*G67/365) -> 1.000191781
A68: *2018.06.18 | B68: 701 | E68: 7.01 | F68: =I67-I68 -> 1 | G68: 7.01 | I68: 2018-06-18 | J68: 7.01 | L68: 1.000192055
A69: *2018.06.15 | B69: 698 | E69: 6.98 | F69: 3 | G69: 20.94 | I69: 2018-06-15 | J69: 6.98 | L69: 1.000573699
A70: *2018.06.14 | B70: 700 | E70: 7 | F70: 1 | G70: 7 | I70: 2018-06-14 | J70: 7 | L70: 1.000191781
A71: *2018.06.13 | B71: 699 | E71: 6.99 | F71: 1 | G71: 6.99 | I71: 2018-06-13 | J71: 6.99 | L71: 1.000191507
A72: *2018.06.09 | B72: 676 | E72: 6.76 | F72: 4 | G72: 27.04 | I72: 2018-06-09 | J72: 6.76 | L72: 1.000740822
A73: *2018.06.08 | B73: 700 | E73: 7 | F73: 1 | G73: 7 | I73: 2018-06-08 | J73: 7 | L73: 1.000191781
A74: *2018.06.07 | B74: 700 | E74: 7 | F74: 1 | G74: 7 | I74: 2018-06-07 | J74: 7 | L74: 1.000191781
A75: *2018.06.06 | B75: 700 | E75: 7 | F75: 1 | G75: 7 | I75: 2018-06-06 | J75: 7 | L75: 1.000191781
A76: *2018.06.05 | B76: 675 | E76: 6.75 | F76: 1 | G76: 6.75 | I76: 2018-06-05 | J76: 6.75 | L76: 1.000184932
A77: *2018.06.04 | B77: 671 | E77: 6.71 | F77: 1 | G77: 6.71 | I77: 2018-06-04 | J77: 6.71 | L77: 1.000183836
A78: *2018.06.01 | B78: 696 | E78: 6.96 | F78: 3 | G78: 20.88 | I78: 2018-06-01 | J78: 6.96 | L78: 1.000572055
A79: *2018.05.31 | B79: 710 | E79: 7.1 | F79: 1 | G79: 7.1 | I79: 2018-05-31 | J79: 7.1 | L79: 1.000194521
A80: *2018.05.30 | B80: 712 | E80: 7.12 | F80: 1 | G80: 7.12 | I80: 2018-05-30 | J80: 7.12 | L80: 1.000195068
A81: *2018.05.29 | B81: 708 | E81: 7.08 | F81: 1 | G81: 7.08 | I81: 2018-05-29 | J81: 7.08 | L81: 1.000193973
A82: *2018.05.28 | B82: 707 | E82: 7.07 | F82: 1 | G82: 7.07 | I82: 2018-05-28 | J82: 7.07 | L82: 1.000193699
A83: *2018.05.25 | B83: 698 | E83: 6.98 | F83: 3 | G83: 20.94 | I83: 2018-05-25 | J83: 6.98 | L83: 1.000573699
A84: *2018.05.24 | B84: 684 | E84: 6.84 | F84: 1 | G84: 6.84 | I84: 2018-05-24 | J84: 6.84 | L84: 1.000187397
A85: *2018.05.23 | B85: 698 | E85: 6.98 | F85: 1 | G85: 6.98 | I85: 2018-05-23 | J85: 6.98 | L85: 1.000191233
A86: *2018.05.22 | B86: 705 | E86: 7.05 | F86: 1 | G86: 7.05 | I86: 2018-05-22 | J86: 7.05 | L86: 1.000193151
A87: *2018.05.21 | B87: 705 | E87: 7.05 | F87: 1 | G87: 7.05 | I87: 2018-05-21 | J87: 7.05 | L87: 1.000193151
A88: *2018.05.18 | B88: 715 | E88: 7.15 | F88: 3 | G88: 21.45 | I88: 2018-05-18 | J88: 7.15 | L88: 1.000587671
A89: *2018.05.17 | B89: 710 | E89: 7.1 | F89: 1 | G89: 7.1 | I89: 2018-05-17 | J89: 7.1 | L89: 1.000194521
A90: *2018.05.16 | B90: 704 | E90: 7.04 | F90: 1 | G90: 7.04 | I90: 2018-05-16 | J90: 7.04 | L90: 1.000192877
A91: *2018.05.15 | B91: 698 | E91: 6.98 | F91: 1 | G91: 6.98 | I91: 2018-05-15 | J91: 6.98 | L91: 1.000191233
A92: *2018.05.14 | B92: 687 | E92: 6.87 | F92: 1 | G92: 6.87 | I92: 2018-05-14 | J92: 6.87 | L92: 1.000188219
A93: *2018.05.11 | B93: 677 | E93: 6.77 | F93: 3 | G93: 20.31 | I93: 2018-05-11 | J93: 6.77 | L93: 1.000556438
A94: *2018.05.10 | B94: 679 | E94: 6.79 | F94: 1 | G94: 6.79 | I94: 2018-05-10 | J94: 6.79 | L94: 1.000186027
A95: *2018.05.08 | B95: 647 | E95: 6.47 | F95: 2 | G95: 12.94 | I95: 2018-05-08 | J95: 6.47 | L95: 1.000354521
A96: *2018.05.07 | B96: 670 | E96: 6.7 | F96: 1 | G96: 6.7 | I96: 2018-05-07 | J96: 6.7 | L96: 1.000183562
A97: *2018.05.04 | B97: 684 | E97: 6.84 | F97: 3 | G97: 20.52 | I97: 2018-05-04 | J97: 6.84 | L97: 1.000562192
A98: *2018.05.03 | B98: 700 | E98: 7 | F98: 1 | G98: 7 | I98: 2018-05-03 | J98: 7 | L98: 1.000191781
A99: *2018.04.28 | B99: 707 | E99: 7.07 | F99: 5 | G99: 35.35 | I99: 2018-04-28 | J99: 7.07 | L99: 1.000968493
A100: *2018.04.27 | B100: 700 | E100: 7 | F100: 1 | G100: 7 | I100: 2018-04-27 | J100: 7 | L100: 1.000191781
A101: *2018.04.26 | B101: 705 | E101: 7.05 | F101: 1 | G101: 7.05 | I101: 2018-04-26 | J101: 7.05 | L101: 1.000193151
A102: *2018.04.25 | B102: 691 | E102: 6.91 | F102: 1 | G102: 6.91 | I102: 2018-04-25 | J102: 6.91 | L102: 1.000189315
A103: *2018.04.24 | B103: 680 | E103: 6.8 | F103: 1 | G103: 6.8 | I103: 2018-04-24 | J103: 6.8 | L103: 1.000186301
A104: *2018.04.23 | B104: 680 | E104: 6.8 | F104: 1 | G104: 6.8 | I104: 2018-04-23 | J104: 6.8 | L104: 1.000186301
A105: *2018.04.20 | B105: 703 | E105: 7.03 | F105: 3 | G105: 21.09 | I105: 2018-04-20 | J105: 7.03 | L105: 1.000577808
A106: *2018.04.19 | B106: 702 | E106: 7.02 | F106: 1 | G106: 7.02 | I106: 2018-04-19 | J106: 7.02 | L106: 1.000192329
A107: *2018.04.18 | B107: 710 | E107: 7.1 | F107: 1 | G107: 7.1 | I107: 2018-04-18 | J107: 7.1 | L107: 1.000194521
A108: *2018.04.17 | B108: 701 | E108: 7.01 | F108: 1 | G108: 7.01 | I108: 2018-04-17 | J108: 7.01 | L108: 1.000192055
A109: *2018.04.16 | B109: 701 | E109: 7.01 | F109: 1 | G109: 7.01 | I109: 2018-04-16 | J109: 7.01 | L109: 1.000192055
A110: *2018.04.13 | B110: 699 | E110: 6.99 | F110: 3 | G110: 20.97 | I110: 2018-04-13 | J110: 6.99 | L110: 1.000574521
A111: *2018.04.12 | B111: 699 | E111: 6.99 | F111: 1 | G111: 6.99 | I111: 2018-04-12 | J111: 6.99 | L111: 1.000191507
A112: *2018.04.11 | B112: 700 | E112: 7 | F112: 1 | G112: 7 | I112: 2018-04-11 | J112: 7 | L112: 1.000191781
A113: *2018.04.10 | B113: 724 | E113: 7.24 | F113: 1 | G113: 7.24 | I113: 2018-04-10 | J113: 7.24 | L113: 1.000198356
A114: *2018.04.09 | B114: 707 | E114: 7.07 | F114: 1 | G114: 7.07 | I114: 2018-04-09 | J114: 7.07 | L114: 1.000193699
A115: *2018.04.06 | B115: 706 | E115: 7.06 | F115: 3 | G115: 21.18 | I115: 2018-04-06 | J115: 7.06 | L115: 1.000580274
A116: *2018.04.05 | B116: 701 | E116: 7.01 | F116: 1 | G116: 7.01 | I116: 2018-04-05 | J116: 7.01 | L116: 1.000192055
A117: *2018.04.04 | B117: 694 | E117: 6.94 | F117: 1 | G117: 6.94 | I117: 2018-04-04 | J117: 6.94 | L117: 1.000190137
A118: *2018.04.03 | B118: 698 | E118: 6.98 | F118: 1 | G118: 6.98 | I118: 2018-04-03 | J118: 6.98 | L118: 1.000191233
A119: *2018.04.02 | B119: 707 | E119: 7.07 | F119: 1 | G119: 7.07 | I119: 2018-04-02 | J119: 7.07 | L119: 1.000193699
A120: *2018.03.30 | B120: 719 | E120: 7.19 | F120: 3 | G120: 21.57 | I120: 2018-03-30 | J120: 7.19 | L120: 1.000590959
A121: *2018.03.29 | B121: 700 | E121: 7 | F121: 1 | G121: 7 | I121: 2018-03-29 | J121: 7 | L121: 1.000191781
A122: *2018.03.28 | B122: 688 | E122: 6.88 | F122: 1 | G122: 6.88 | I122: 2018-03-28 | J122: 6.88 | L122: 1.000188493
A123: *2018.03.27 | B123: 708 | E123: 7.08 | F123: 1 | G123: 7.08 | I123: 2018-03-27 | J123: 7.08 | L123: 1.000193973
A124: *2018.03.26 | B124: 715 | E124: 7.15 | F124: 1 | G124: 7.15 | I124: 2018-03-26 | J124: 7.15 | L124: 1.00019589
A125: *2018.03.23 | B125: 690 | E125: 6.9 | F125: 3 | G125: 20.7 | I125: 2018-03-23 | J125: 6.9 | L125: 1.000567123
A126: *2018.03.22 | B126: 712 | E126: 7.12 | F126: 1 | G126: 7.12 | I126: 2018-03-22 | J126: 7.12 | L126: 1.000195068
A127: *2018.03.21 | B127: 704 | E127: 7.04 | F127: 1 | G127: 7.04 | I127: 2018-03-21 | J127: 7.04 | L127: 1.000192877
A128: *2018.03.20 | B128: 716 | E128: 7.16 | F128: 1 | G128: 7.16 | I128: 2018-03-20 | J128: 7.16 | L128: 1.000196164
A129: *2018.03.19 | B129: 714 | E129: 7.14 | F129: 1 | G129: =E129*F129 -> 7.14 | I129: 2018-03-19 | J129: 7.14 | L129: 1.000195616
A130: *2018.03.16 | B130: 715 | E130: 7.15 | F130: 3 | G130: 21.45 | I130: 2018-03-16 | J130: 7.15 | L130: 1.000587671
A131: *2018.03.15 | B131: 728 | E131: =VALUE(B131)/100 -> 7.28 | F131: 1 | G131: =E131*F131 -> 7.28 | I131: =DATE(MID($A131,2,4), MID($A131,7,2), RIGHT($A131,2)) -> 2018-03-15 | J131: =E131 -> 7.28 | L131: =(1+0.01*G131/365) -> 1.000199452
A132: *2018.03.14 | B132: 731 | E132: 7.31 | F132: =I131-I132 -> 1 | G132: 7.31 | I132: 2018-03-14 | J132: 7.31 | L132: 1.000200274
A133: *2018.03.13 | B133: 731 | E133: 7.31 | F133: 1 | G133: 7.31 | I133: 2018-03-13 | J133: 7.31 | L133: 1.000200274
A134: *2018.03.12 | B134: 731 | E134: 7.31 | F134: 1 | G134: 7.31 | I134: 2018-03-12 | J134: 7.31 | L134: 1.000200274
A135: *2018.03.07 | B135: 718 | E135: 7.18 | F135: 5 | G135: 35.9 | I135: 2018-03-07 | J135: 7.18 | L135: 1.000983562
A136: *2018.03.06 | B136: 711 | E136: 7.11 | F136: 1 | G136: 7.11 | I136: 2018-03-06 | J136: 7.11 | L136: 1.000194795
A137: *2018.03.05 | B137: 725 | E137: 7.25 | F137: 1 | G137: 7.25 | I137: 2018-03-05 | J137: 7.25 | L137: 1.00019863
A138: *2018.03.02 | B138: 716 | E138: 7.16 | F138: 3 | G138: 21.48 | I138: 2018-03-02 | J138: 7.16 | L138: 1.000588493
A139: *2018.03.01 | B139: 738 | E139: 7.38 | F139: 1 | G139: 7.38 | I139: 2018-03-01 | J139: 7.38 | L139: 1.000202192
A140: *2018.02.28 | B140: 750 | E140: 7.5 | F140: 1 | G140: 7.5 | I140: 2018-02-28 | J140: 7.5 | L140: 1.000205479
A141: *2018.02.27 | B141: 745 | E141: 7.45 | F141: 1 | G141: 7.45 | I141: 2018-02-27 | J141: 7.45 | L141: 1.00020411
A142: *2018.02.26 | B142: 730 | E142: 7.3 | F142: 1 | G142: 7.3 | I142: 2018-02-26 | J142: 7.3 | L142: 1.0002
A143: *2018.02.22 | B143: 723 | E143: 7.23 | F143: 4 | G143: 28.92 | I143: 2018-02-22 | J143: 7.23 | L143: 1.000792329
A144: *2018.02.21 | B144: 729 | E144: 7.29 | F144: 1 | G144: 7.29 | I144: 2018-02-21 | J144: 7.29 | L144: 1.000199726
A145: *2018.02.20 | B145: 728 | E145: 7.28 | F145: 1 | G145: 7.28 | I145: 2018-02-20 | J145: 7.28 | L145: 1.000199452
A146: *2018.02.19 | B146: 728 | E146: 7.28 | F146: 1 | G146: 7.28 | I146: 2018-02-19 | J146: 7.28 | L146: 1.000199452
A147: *2018.02.16 | B147: 721 | E147: 7.21 | F147: 3 | G147: 21.63 | I147: 2018-02-16 | J147: 7.21 | L147: 1.000592603
A148: *2018.02.15 | B148: 708 | E148: 7.08 | F148: 1 | G148: 7.08 | I148: 2018-02-15 | J148: 7.08 | L148: 1.000193973
A149: *2018.02.14 | B149: 696 | E149: 6.96 | F149: 1 | G149: 6.96 | I149: 2018-02-14 | J149: 6.96 | L149: 1.000190685
A150: *2018.02.13 | B150: 683 | E150: 6.83 | F150: 1 | G150: 6.83 | I150: 2018-02-13 | J150: 6.83 | L150: 1.000187123
A151: *2018.02.12 | B151: 678 | E151: 6.78 | F151: 1 | G151: 6.78 | I151: 2018-02-12 | J151: 6.78 | L151: 1.000185753
A152: *2018.02.09 | B152: 699 | E152: 6.99 | F152: 3 | G152: 20.97 | I152: 2018-02-09 | J152: 6.99 | L152: 1.000574521
A153: *2018.02.08 | B153: 706 | E153: 7.06 | F153: 1 | G153: 7.06 | I153: 2018-02-08 | J153: 7.06 | L153: 1.000193425
A154: *2018.02.07 | B154: 707 | E154: 7.07 | F154: 1 | G154: 7.07 | I154: 2018-02-07 | J154: 7.07 | L154: 1.000193699
A155: *2018.02.06 | B155: 723 | E155: 7.23 | F155: 1 | G155: 7.23 | I155: 2018-02-06 | J155: 7.23 | L155: 1.000198082
A156: *2018.02.05 | B156: 719 | E156: 7.19 | F156: 1 | G156: 7.19 | I156: 2018-02-05 | J156: 7.19 | L156: 1.000196986
A157: *2018.02.02 | B157: 709 | E157: 7.09 | F157: 3 | G157: 21.27 | I157: 2018-02-02 | J157: 7.09 | L157: 1.00058274
A158: *2018.02.01 | B158: 726 | E158: 7.26 | F158: 1 | G158: 7.26 | I158: 2018-02-01 | J158: 7.26 | L158: 1.000198904
A159: *2018.01.31 | B159: 712 | E159: 7.12 | F159: 1 | G159: 7.12 | I159: 2018-01-31 | J159: 7.12 | L159: 1.000195068
A160: *2018.01.30 | B160: 737 | E160: 7.37 | F160: 1 | G160: 7.37 | I160: 2018-01-30 | J160: 7.37 | L160: 1.000201918
A161: *2018.01.29 | B161: 735 | E161: 7.35 | F161: 1 | G161: 7.35 | I161: 2018-01-29 | J161: 7.35 | L161: 1.00020137
A162: *2018.01.26 | B162: 725 | E162: 7.25 | F162: 3 | G162: 21.75 | I162: 2018-01-26 | J162: 7.25 | L162: 1.00059589
A163: *2018.01.25 | B163: 721 | E163: 7.21 | F163: 1 | G163: 7.21 | I163: 2018-01-25 | J163: 7.21 | L163: 1.000197534
A164: *2018.01.24 | B164: 693 | E164: 6.93 | F164: 1 | G164: 6.93 | I164: 2018-01-24 | J164: 6.93 | L164: 1.000189863
A165: *2018.01.23 | B165: 695 | E165: 6.95 | F165: 1 | G165: 6.95 | I165: 2018-01-23 | J165: 6.95 | L165: 1.000190411
A166: *2018.01.22 | B166: 701 | E166: 7.01 | F166: 1 | G166: 7.01 | I166: 2018-01-22 | J166: 7.01 | L166: 1.000192055
A167: *2018.01.19 | B167: 701 | E167: 7.01 | F167: 3 | G167: 21.03 | I167: 2018-01-19 | J167: 7.01 | L167: 1.000576164
A168: *2018.01.18 | B168: 707 | E168: 7.07 | F168: 1 | G168: 7.07 | I168: 2018-01-18 | J168: 7.07 | L168: 1.000193699
A169: *2018.01.17 | B169: 698 | E169: 6.98 | F169: 1 | G169: 6.98 | I169: 2018-01-17 | J169: 6.98 | L169: 1.000191233
A170: *2018.01.16 | B170: 702 | E170: 7.02 | F170: 1 | G170: 7.02 | I170: 2018-01-16 | J170: 7.02 | L170: 1.000192329
A171: *2018.01.15 | B171: 700 | E171: 7 | F171: 1 | G171: 7 | I171: 2018-01-15 | J171: 7 | L171: 1.000191781
A172: *2018.01.12 | B172: 700 | E172: 7 | F172: 3 | G172: 21 | I172: 2018-01-12 | J172: 7 | L172: 1.000575342
A173: *2018.01.11 | B173: 704 | E173: 7.04 | F173: 1 | G173: 7.04 | I173: 2018-01-11 | J173: 7.04 | L173: 1.000192877
A174: *2018.01.10 | B174: 716 | E174: 7.16 | F174: 1 | G174: 7.16 | I174: 2018-01-10 | J174: 7.16 | L174: 1.000196164
A175: *2018.01.09 | B175: 688 | E175: 6.88 | F175: 1 | G175: 6.88 | I175: 2018-01-09 | J175: 6.88 | L175: 1.000188493
A176: *2017.12.28 | B176: 719 | E176: 7.19 | F176: 12 | G176: 86.28 | I176: 2017-12-28 | J176: 7.19 | L176: 1.002363836
A177: *2017.12.27 | B177: 741 | E177: 7.41 | F177: 1 | G177: 7.41 | I177: 2017-12-27 | J177: 7.41 | L177: 1.000203014
A178: *2017.12.26 | B178: 758 | E178: 7.58 | F178: 1 | G178: 7.58 | I178: 2017-12-26 | J178: 7.58 | L178: 1.000207671
A179: *2017.12.25 | B179: 784 | E179: 7.84 | F179: 1 | G179: 7.84 | I179: 2017-12-25 | J179: 7.84 | L179: 1.000214795
A180: *2017.12.22 | B180: 754 | E180: 7.54 | F180: 3 | G180: 22.62 | I180: 2017-12-22 | J180: 7.54 | L180: 1.000619726
A181: *2017.12.21 | B181: 750 | E181: 7.5 | F181: 1 | G181: 7.5 | I181: 2017-12-21 | J181: 7.5 | L181: 1.000205479
A182: *2017.12.20 | B182: 750 | E182: 7.5 | F182: 1 | G182: 7.5 | I182: 2017-12-20 | J182: 7.5 | L182: 1.000205479
A183: *2017.12.19 | B183: 748 | E183: 7.48 | F183: 1 | G183: 7.48 | I183: 2017-12-19 | J183: 7.48 | L183: 1.000204932
A184: *2017.12.18 | B184: 754 | E184: 7.54 | F184: 1 | G184: 7.54 | I184: 2017-12-18 | J184: 7.54 | L184: 1.000206575
A185: *2017.12.15 | B185: 790 | E185: 7.9 | F185: 3 | G185: 23.7 | I185: 2017-12-15 | J185: 7.9 | L185: 1.000649315
A186: *2017.12.14 | B186: 785 | E186: 7.85 | F186: 1 | G186: 7.85 | I186: 2017-12-14 | J186: 7.85 | L186: 1.000215068
A187: *2017.12.13 | B187: 797 | E187: 7.97 | F187: 1 | G187: 7.97 | I187: 2017-12-13 | J187: 7.97 | L187: 1.000218356
A188: *2017.12.12 | B188: 799 | E188: 7.99 | F188: 1 | G188: 7.99 | I188: 2017-12-12 | J188: 7.99 | L188: 1.000218904
A189: *2017.12.11 | B189: 798 | E189: 7.98 | F189: 1 | G189: 7.98 | I189: 2017-12-11 | J189: 7.98 | L189: 1.00021863
A190: *2017.12.08 | B190: 809 | E190: 8.09 | F190: 3 | G190: 24.27 | I190: 2017-12-08 | J190: 8.09 | L190: 1.000664932
A191: *2017.12.07 | B191: 811 | E191: 8.11 | F191: 1 | G191: 8.11 | I191: 2017-12-07 | J191: 8.11 | L191: 1.000222192
A192: *2017.12.06 | B192: 807 | E192: 8.07 | F192: 1 | G192: 8.07 | I192: 2017-12-06 | J192: 8.07 | L192: 1.000221096
A193: *2017.12.05 | B193: 807 | E193: 8.07 | F193: 1 | G193: 8.07 | I193: 2017-12-05 | J193: 8.07 | L193: 1.000221096
A194: *2017.12.04 | B194: 783 | E194: 7.83 | F194: 1 | G194: 7.83 | I194: 2017-12-04 | J194: 7.83 | L194: 1.000214521
A195: *2017.12.01 | B195: 821 | E195: =VALUE(B195)/100 -> 8.21 | F195: 3 | G195: =E195*F195 -> 24.63 | I195: =DATE(MID($A195,2,4), MID($A195,7,2), RIGHT($A195,2)) -> 2017-12-01 | J195: =E195 -> 8.21 | L195: =(1+0.01*G195/365) -> 1.000674795
A196: *2017.11.30 | B196: 824 | E196: 8.24 | F196: =I195-I196 -> 1 | G196: 8.24 | I196: 2017-11-30 | J196: 8.24 | L196: 1.000225753
A197: *2017.11.29 | B197: 828 | E197: 8.28 | F197: 1 | G197: 8.28 | I197: 2017-11-29 | J197: 8.28 | L197: 1.000226849
A198: *2017.11.28 | B198: 820 | E198: 8.2 | F198: 1 | G198: 8.2 | I198: 2017-11-28 | J198: 8.2 | L198: 1.000224658
A199: *2017.11.27 | B199: 803 | E199: 8.03 | F199: 1 | G199: 8.03 | I199: 2017-11-27 | J199: 8.03 | L199: 1.00022
A200: *2017.11.24 | B200: 797 | E200: 7.97 | F200: 3 | G200: 23.91 | I200: 2017-11-24 | J200: 7.97 | L200: 1.000655068
... 1423 more rows

Sheet RUHolidays
A1: 2015-12-31
A2: 2016-01-01
A3: 2016-01-02
A4: 2016-01-03
A5: 2016-01-07
A6: 2016-01-08
A7: 2016-01-09
A8: 2016-01-10
A9: 2016-02-23
A10: 2016-03-08
A11: 2016-05-02
A12: 2016-05-03
A13: 2016-05-09
A14: 2016-06-13
A15: 2016-11-04

Sheet FloatersQuotes
A1: BondName | B1: Moment | C1: bid | D1: offer | E1: mid | F1: last | G1: price | L1: Bond | M1: SecurityId | N1: bid | O1: offer | P1: last | Q1: vol | R1: lastmoment | S1: spread | T1: ytmlast | U1: ytmbid | V1: ytmask | W1: mdur | X1: ytm
A2: 24019 | F2: 10034 | G2: 10034 | L2: ОФЗ 26208 | M2: SU26208RMFS7 | P2: 10012 | Q2: 1977271,25 | R2: 19.09.2018 18:48:49 | T2: 733 | W2: 41 | X2: 733 | Y2: =W2/100*365 -> 149.65 | Z2: =X2/100 -> 7.33
A3: 29008 | F3: 11129 | G3: 11129 | L3: ОФЗ 26216 | M3: SU26216RMFS0 | P3: 9956 | Q3: 1925471,06 | R3: 19.09.2018 18:45:37 | T3: 752 | W3: 59 | X3: 752 | Y3: =W3/100*365 -> 215.35 | Z3: =X3/100 -> 7.52
A4: 29006 | F4: 10420 | G4: 10420 | L4: ОФЗ 26210 | M4: SU26210RMFS3 | P4: 9918 | Q4: 2942670,60 | R4: 19.09.2018 17:48:12 | T4: 764 | W4: 109 | X4: 764 | Y4: 397.85 | Z4: 7.64
A5: 29009 | F5: 11535 | G5: 11535 | L5: ОФЗ 26214 | M5: SU26214RMFS5 | P5: 9799 | Q5: 1170992,45 | R5: 19.09.2018 18:28:44 | T5: 783 | W5: 148 | X5: 783 | Y5: =W5/100*365 -> 540.2 | Z5: 7.83
A6: 29011 | F6: 10087 | G6: 10087 | L6: ОФЗ 26205 | M6: SU26205RMFS3 | P6: 9945 | Q6: 288576054,00 | R6: 19.09.2018 17:24:23 | T6: 799 | W6: 214 | X6: 799 | Y6: 781.1 | Z6: 7.99
A7: 29012 | F7: 10035 | G7: 10035 | L7: ОФЗ 26217 | M7: SU26217RMFS8 | P7: 9890 | Q7: 98900000,00 | R7: 19.09.2018 17:32:04 | T7: 808 | W7: 246 | X7: 808 | Y7: 897.9 | Z7: 8.08
A8: 24018 | F8: 9998 | G8: 9998 | L8: ОФЗ 25083 | M8: SU25083RMFS5 | P8: 9724 | Q8: 1964207,60 | R8: 19.09.2018 17:57:23 | T8: 814 | W8: 268 | X8: 814 | Y8: 978.2 | Z8: 8.14
L9: ОФЗ 26209 | M9: SU26209RMFS5 | P9: 9850 | Q9: 32505000,00 | R9: 19.09.2018 18:29:36 | T9: 822 | W9: 310 | X9: 822 | Y9: 1131.5 | Z9: 8.22
L10: ОФЗ 26220 | M10: SU26220RMFS2 | P10: 9730 | Q10: 97300000,00 | R10: 19.09.2018 18:23:08 | T10: 833 | W10: 334 | X10: 833 | Y10: 1219.1 | Z10: 8.33
L11: ОФЗ 26211 | M11: SU26211RMFS1 | P11: 9600 | Q11: 4799850,00 | R11: 19.09.2018 16:54:16 | T11: 827 | W11: 349 | X11: 827 | Y11: 1273.85 | Z11: 8.27
L12: ОФЗ 26215 | M12: SU26215RMFS2 | P12: 9551 | Q12: 5438453,28 | R12: 19.09.2018 18:05:54 | T12: 829 | W12: 388 | X12: 829 | Y12: 1416.2 | Z12: 8.29
L13: ОФЗ 26223 | M13: SU26223RMFS6 | P13: 9235 | Q13: 166230000,00 | R13: 19.09.2018 18:35:31 | T13: 844 | W13: 426 | X13: 844 | Y13: 1554.9 | Z13: 8.44
L14: ОФЗ 26222 | M14: SU26222RMFS8 | P14: 9420 | Q14: 188395000,00 | R14: 19.09.2018 18:23:11 | T14: 851 | W14: 448 | X14: 851 | Y14: 1635.2 | Z14: 8.51
L15: ОФЗ 26219 | M15: SU26219RMFS4 | P15: 9545 | Q15: 159401500,00 | R15: 19.09.2018 18:39:13 | T15: 873 | W15: 536 | X15: 873 | Y15: 1956.4 | Z15: 8.73
L16: ОФЗ 26207 | M16: SU26207RMFS9 | P16: 9780 | Q16: 4884032,12 | R16: 19.09.2018 18:05:21 | T16: 870 | W16: 566 | X16: 870 | Y16: 2065.9 | Z16: 8.7
L17: ОФЗ 26212 | M17: SU26212RMFS9 | P17: 9015 | Q17: 5409000,00 | R17: 19.09.2018 18:54:47 | T17: 879 | W17: 624 | X17: 879 | Y17: 2277.6 | Z17: 8.79
L18: ОФЗ 26224 | M18: SU26224RMFS4 | P18: 8815 | Q18: 44075000,00 | R18: 19.09.2018 18:15:48 | T18: 880 | W18: 675 | X18: 880 | Y18: =W21/100*365 -> 3018.55 | Z18: =X21/100 -> 8.75
L19: ОФЗ 26218 | M19: SU26218RMFS6 | P19: 9931 | Q19: 5622762,34 | R19: 19.09.2018 18:39:16 | T19: 877 | W19: 716 | X19: 877
L20: ОФЗ 26221 | M20: SU26221RMFS0 | P20: 9280 | Q20: 92797216,00 | R20: 19.09.2018 18:27:49 | T20: 876 | W20: 777 | X20: 876
L21: ОФЗ 26225 | M21: SU26225RMFS1 | P21: 8875 | Q21: 4437550,00 | R21: 19.09.2018 18:36:30 | T21: 875 | W21: 827 | X21: 875

Sheet Roisfix_data
A1: НАЦИОНАЛЬНАЯ ФИНАНСОВАЯ АССОЦИАЦИЯ
A2: Телефон: +7 495 980-98-74
A3: Почта: info@nfa.ru
A4: Адрес: 107045, г. Москва, Большой Сергиевский переулок, д. 10, подъезд 2, этаж 3
A5: English
A6: Начало
A7: Документы
A8: Контрибьютеры
A9: Экспертный совет
A10: Новости
A11: Архив
A12: ROISFIX®
A13: 19.09.2018
A15: Roisfix1W - 7,34
A17: Roisfix2W - 7,34
A19: Roisfix1M - 7,34
A21: Roisfix2M - 7,44
A23: Roisfix3M - 7,54
A25: Roisfix6M - 7,86
A27: Roisfix1Y - 8,34
A28: Последние новости
A29: Порядок расчета индикаторов в последний рабочий день 2017 года и последующие новогодние праздники
A30: 7 декабря 2017
A31: Об особенностях расчета финансовых индикаторов в 2018 году.
A32: 6 декабря 2017
A33: О расчете финансовых индикаторов в праздничные дни
A34: 3 ноября 2017
A35: О расчете финансовых индикаторов в праздничные дни
A36: 28 апреля 2017
A37: О расчете финансовых индикаторов в праздничные дни
A38: 7 марта 2017
A39: О расчете финансовых индикаторов в праздничные дни
A40: 15 февраля 2017
A41: Все новости
A42: Расчетный партнер НФА
A43: Ежедневный фиксинг ставок OIS на базе RUONIA
A44: ROISFIX 19.09.2018
A45: Код банка | B45: 1W | C45: 2W | D45: 1M | E45: 2M | F45: 3M | G45: 6M | H45: 1Y
A46: ROISFIX/BSPB | B46: 7,35 A | C46: 7,35 A | D46: 7,35 A | E46: 7,45 A | F46: 7,55 A | G46: 7,85 A | H46: 8,40 A
A47: ROISFIX/GZPR | B47: 7,35 A | C47: 7,35 A | D47: 7,35 A | E47: 7,45 A | F47: 7,55 A | G47: 7,85 A | H47: 8,35 A
A48: ROISFIX/MEIN | B48: 7,30 A | C48: 7,30 A | D48: 7,30 A | E48: 7,40 A | F48: 7,50 A | G48: 7,85 A | H48: 8,30 A
A49: ROISFIX/RZBM | B49: 7,38 A | C49: 7,38 A | D49: 7,36 A | E49: 7,46 A | F49: 7,55 A | G49: 7,88 A | H49: 8,40 A
A50: ROISFIX/SBER | B50: 7,35 A | C50: 7,35 A | D50: 7,35 A | E50: 7,46 A | F50: 7,57 A | G50: 7,91 A | H50: 8,38 A
A51: ROISFIX/RVTB | B51: 7,45 T | C51: 7,45 T | D51: 7,45 T | E51: 7,50 T | F51: 7,65 T | G51: 8,00 T | H51: 8,45 T
A52: ROISFIX/AGRM | B52: 7,31 A | C52: 7,31 A | D52: 7,31 A | E52: 7,43 A | F52: 7,53 A | G52: 7,83 A | H52: 8,23 A
A53: ROISFIX/OPEN | B53: 7,15 B | C53: 7,16 B | D53: 7,23 B | E53: 7,28 B | F53: 7,35 B | G53: 7,48 B | H53: 7,80 B
A55: Скачать файл в формате CSV
A59: Индикативные ставки НФА
A62: Copyright © 2011 www.nfa.ru.
A63: All rights reserved.

Sheet Roisfix_clean
A1: Term | B1: Value
A2: 7 | B2: =Roisfix_data!A15 -> Roisfix1W - 7,34 | C2: =SUBSTITUTE(RIGHT(B2,LEN(B2)-SEARCH("-",B2)),",","")/100 -> 7.34
A3: 14 | B3: =Roisfix_data!A17 -> Roisfix2W - 7,34 | C3: =SUBSTITUTE(RIGHT(B3,LEN(B3)-SEARCH("-",B3)),",","")/100 -> 7.34
A4: 30 | B4: =Roisfix_data!A19 -> Roisfix1M - 7,34 | C4: 7.34
A5: 60 | B5: =Roisfix_data!A21 -> Roisfix2M - 7,44 | C5: 7.44
A6: 90 | B6: =Roisfix_data!A23 -> Roisfix3M - 7,54 | C6: 7.54
A7: 182 | B7: =Roisfix_data!A25 -> Roisfix6M - 7,86 | C7: 7.86
A8: 365 | B8: =Roisfix_data!A27 -> Roisfix1Y - 8,34 | C8: 8.34

Sheet RUONIA_QUOTES
A1: issue_name | B1: BID | C1: ASK | D1: MID
A2: RUON-9.18 | B2: 9273 | C2: 9298 | D2: 9285
A3: RUON-10.18 | B3: 9250 | C3: 9275 | D3: 9262
A4: RUON-11.18 | B4: 9233 | C4: 9258 | D4: 9245
A5: RUON-12.18 | B5: 9220 | C5: 9245 | D5: 9232
A6: RUON-1.19 | B6: 9207 | C6: 9232 | D6: 9219
A7: RUON-2.19 | B7: 9190 | C7: 9220 | D7: 9205
A8: RUON-3.19 | B8: 9175 | C8: 9205 | D8: 9190
A9: RUON-4.19 | B9: 9160 | C9: 9190 | D9: 9175
A10: RUON-5.19 | B10: 9145 | C10: 9175 | D10: 9160
A11: RUON-6.19 | B11: 9140 | C11: 9170 | D11: 9155
A12: RUON-7.19 | B12: 9140 | C12: 9170 | D12: 9155
A13: RUON-8.19 | B13: 9140 | C13: 9170 | D13: 9155
